Workbook

Sheet Instructions
A1: Manufacturer | B1: Florida Tile
A2: Product Code | B2: G | C2: File as: | D2: F
A3: CCTD Effective Date | B3: 4/1/24 (Updated)
A7: Enter your Company Name
B9: Click on "Index" to set the print area for the price list index
B10: Then you can send it to print
B13: Click on "Suggested Price List" to set the print area for Conestoga Tile's suggested price list.
B14: Then you can send it to print
B17: Enter your discount codes if you want a personal net cost sheet.
B19: Product
B20: Code | C20: Disc. %
B21: =+B2 -> G
B23: Click on "Your Cost" to set the print area for your personal cost report.
B24: Then you can send it to print
A27: Discount: | B27: To help establish your price list, enter the gross profit percent for each type of product.
B28: If you want to use Conestoga Tile's list price, leave them blank.
A30: Round Nickel: | B30: If you always want your price to round to the nearest nickel, enter "YES".
B31: If you enter "NO", it will NOT round to the nearest nickel.
A33: Ending Cents: | B33: If you always want your price to end with a certain cents, enter that cent value.
B34: If you leave it "blank" will NOT round to this cent value.
B36: Group | C36: GP Margin | D36: GP Margin % for | F36: Round Nickel | G36: add/subtract | H36: Ending Cents
B37: 1 | D37: Field Tile | F37: No | G37: 0
B38: 2 | D38: Trim | F38: No | G38: 0
B39: 3 | D39: Decos | F39: No | G39: 0
B40: 4 | D40: Builder - Field Tile | F40: No | G40: 0
B41: 5 | D41: Builder - Trim | F41: No | G41: 0
B42: 6 | D42: Builder - Decos | F42: No | G42: 0
B43: 7 | D43: 0 | F43: No | G43: 0
A45: If you want to manually adjust your price list, hit "F5" and go to "Customer_Cost" to manually adjust pricing.
A46: You can enter a value in the column labeled "Adj." to change your price manually.
B48: Click on "Your Price Calculation" to set the print area for your personal cost calculation report.
B49: Then you can send it to print
B52: Click on "Your Price List" to set the print area for your personal price list.
B53: Then you can send it to print
H54: Yes
A56: If you have any questions on how to best use this spreadsheet, please feel free to contact
A57: Jim Vogel at (800) 422-6860, ext. 4201 or via e-mail at jimvogel@cctd.com

Sheet Index
K2: ="File '"&Instructions!D2&"' - "&Instructions!B1 -> File 'F' - Florida Tile
A5: ="Price List Index - "&Instructions!B3 -> Price List Index - 4/1/24 (Updated)
A10: Page | C10: Series | E10: Product Type | G10: Page | I10: Series | K10: Product Type
A11: 1 | C11: Ainslee ParkHDP | E11: Ceramic & Porcelain | G11: 6 | I11: Memorable - Disc 12/6/24 | K11: Unglazed Porcelain
A12: 1 | C12: AlustraHDP | E12: Color Body Porcelain | G12: 6 | I12: MineralHDP | K12: 2cm Porcelain Pavers
A13: 1-2 | C13: Amplify | E13: Glazed Ceramic | G13: 7 | I13: NaturaHDP | K13: Color Body Porcelain
A14: 2 | C14: Aura | E14: Glazed Porcelain | G14: 7 | I14: NY2LAHDP | K14: Color Body Porcelain
A15: 2 | C15: Aventis | E15: Color Body Porcelain | G15: 7 | I15: NY2LAHDP | K15: 2cm Porcelain Pavers
A16: 2 | C16: Bellanova | E16: Color Body Porcelain | G16: 7 | I16: PassengerHDP | K16: Color Body Porcelain
A17: 2 | C17: BerkshireHDP | E17: Color Body Porcelain | G17: 7 | I17: PassengerHDP | K17: 2cm Porcelain Pavers
A18: 2 | C18: BlueRunHDP | E18: Color Body Porcelain | G18: 7 | I18: Pietra Art Bliss | K18: Natural Stone & Glass
A19: 2 | C19: BlueRunHDP | E19: 2cm Porcelain Pavers | G19: 8 | I19: Pietra Art Ledgerstone-Disc 8/21/24 | K19: Natural Stone
A20: 3 | C20: Canal StreetHDP | E20: Color Body Porcelain | G20: 8 | I20: Pietra Art Pebbles | K20: Natural Stone
A21: 3 | C21: CellarHDP | E21: Color Body Porcelain | G21: 8-9 | I21: PreciousHDP | K21: Ceramic & Porcelain
A22: 3 | C22: Comfort | E22: Glazed Porcelain | G22: 9 | I22: Rhyme | K22: Color Body Porcelain
A23: 3 | C23: ContinentDP | E23: Glazed Porcelain | G23: 9 | I23: SequenceHDP | K23: Color Body Porcelain
A24: 3 | C24: CraftsmanDP - Disc 8/21/24 | E24: Glazed Porcelain | G24: 9 | I24: SerendipityHDP | K24: Color Body Porcelain
A25: 3 | C25: DivinityHDP | E25: Color Body Porcelain | G25: 9 | I25: Soho | K25: Ceramic Wall
A26: 3-4 | C26: East VillageHDP | E26: Color Body Porcelain | G26: 9-10 | I26: Soho | K26: Porcelain Mosaics
A27: 4 | C27: Emotive | E27: Glazed Ceramic | G27: 10 | I27: Songbird | K27: Glazed Ceramic
A28: 4 | C28: EnchantHDP | E28: Glazed Porcelain | G28: 10 | I28: SpanHDP | K28: 2cm Porcelain Pavers
A29: 5 | C29: ExcursionHDP | E29: Glazed Porcelain | G29: 10 | I29: Storied | K29: Glazed Ceramic
A30: 5 | C30: Fluent | E30: Glazed Ceramic | G30: 10-11 | I30: Tempo | K30: Ceramic & Porcelain
A31: 5 | C31: GravitateHDP | E31: Glazed Porcelain | G31: 11 | I31: TidesHDP | K31: Glazed Porcelain
A32: 5 | C32: High RidgeHDP | E32: Glazed Porcelain | G32: 11 | I32: Time 2.0 - Natural | K32: Through-Body Porcelain
A33: 5 | C33: High RidgeHDP | E33: 2cm Porcelain Pavers | G33: 11 | I33: Time 2.0 - Polished | K33: Through-Body Porcelain
A34: 5-6 | C34: Indulge | E34: Color Body Porcelain | G34: 11 | I34: Tuscan VillaHDP | K34: Glazed Porcelain
A35: 6 | C35: LocalHDP - Disc 12/6/24 | E35: Glazed Porcelain | G35: 11 | I35: Urban FoundryHDP | K35: Color Body Porcelain
A36: 6 | C36: Lost RiverHDP - Disc 8/21/24 | E36: Color Body Porcelain
A37: 6 | C37: MagnoliaHDP | E37: Color Body Porcelain
A48: Metropolitan Quarry Tile…see price book File "M" - METROPOLITAN
A50: This price list is available electronically on an Excel spreadsheet at www.conestogatile.com/pricelists.
A52: The spreadsheet has many special features to assist you. Apply your discount to generate your net costs for your purchasing department. Apply your standard gross margin percentage or custom prices to generate your own custom price list for your showroom. Print out individual price list for each series that can be attached to the back of your sample boards for easy reference.

Sheet Price List
B1: Field Tile | E1: Size | G1: Field | P1: SF/CTN | S1: =IF(Suggested="Yes",AA1,AG1) -> 0.05 | T1: SF | U1: =+Instructions!$B$21 -> G | W1: =+Instructions!$C$21 -> 0 | X1: =IF(Instructions!$C$21="Group",#REF!,IF(Instructions!$C$21="Carter",#REF!,ROUNDUP($AA1*(1-W1),2))) -> 0.05 | Z1: new | AA1: 0.05 | AB1: =+W1 -> 0 | AC1: 0.05 | AD1: =(AG1-AC1)/AG1 -> 0 | AF1: 1 | AG1: =SUM(AI1:AK1)+AE1 -> 0.05 | AI1: =ROUND(AC1/(1-VLOOKUP(AF1,Group,2,FALSE)),2) -> 0.05 | AJ1: =IF(VLOOKUP(AF1,Group,5,FALSE)="YES",VLOOKUP(ROUND(ROUND(AI1,1)-AI1,2),Round,2,FALSE)+VLOOKUP(AF1,Group,6,FALSE),0) -> 0 | AK1: =IF(VLOOKUP(AF1,Group,7,FALSE)="",0,ROUND(AI1-0.04999,1)-AI1+AL1) -> 0 | AL1: =IF(VLOOKUP(AF1,Group,7,FALSE)="","",VLOOKUP(AF1,Group,7,FALSE)) ->  | AN1: X
B2: Trim | E2: Size | G2: Shape | I2: Description | S2: 0.05 | T2: EA | U2: =+Instructions!$B$21 -> G | W2: =+Instructions!$C$21 -> 0 | X2: =IF(Instructions!$C$21="Group",#REF!,IF(Instructions!$C$21="Carter",#REF!,ROUNDUP($AA2*(1-W2),2))) -> 0.05 | Z2: new | AA2: 0.05 | AB2: 0 | AC2: 0.05 | AD2: 0 | AF2: 2 | AG2: 0.05 | AI2: 0.05 | AJ2: 0 | AK2: 0 | AN2: X
B3: Decos | E3: Size | G3: Shape | I3: Description | S3: 0.05 | T3: EA | U3: =+Instructions!$B$21 -> G | W3: =+Instructions!$C$21 -> 0 | X3: =IF(Instructions!$C$21="Group",#REF!,IF(Instructions!$C$21="Carter",#REF!,ROUNDUP($AA3*(1-W3),2))) -> 0.05 | Z3: new | AA3: 0.05 | AB3: 0 | AC3: 0.05 | AD3: 0 | AF3: 3 | AG3: 0.05 | AI3: 0.05 | AJ3: 0 | AK3: 0 | AN3: X
B4: Builder - Field Tile | E4: Size | G4: Shape | I4: Description | P4: SF/CTN | S4: 0.05 | T4: SF | U4: xx | W4: =IF(Instructions!$C$21="Group","Group",IF(Instructions!$C$21="Carter","Carter",50%)) -> 0.5 | X4: =IF(Instructions!$C$21="Group",#REF!,IF(Instructions!$C$21="Carter",#REF!,ROUNDUP($AA4*(1-W4),2))) -> 0.03 | Z4: new | AA4: 0.05 | AB4: 0.5 | AC4: 0.03 | AD4: 0 | AF4: 4 | AG4: 0.03 | AI4: 0.03 | AJ4: 0 | AK4: 0 | AN4: X
B5: Builder - Trim | E5: Size | G5: Shape | I5: Description | S5: 0.05 | T5: EA | U5: xx | W5: =IF(Instructions!$C$21="Group","Group",IF(Instructions!$C$21="Carter","Carter",50%)) -> 0.5 | X5: =IF(Instructions!$C$21="Group",#REF!,IF(Instructions!$C$21="Carter",#REF!,ROUNDUP($AA5*(1-W5),2))) -> 0.03 | Z5: new | AA5: 0.05 | AB5: 0.5 | AC5: 0.03 | AD5: 0 | AF5: 5 | AG5: 0.03 | AI5: 0.03 | AJ5: 0 | AK5: 0 | AN5: X
B6: Builder - Decos | E6: Size | G6: Shape | I6: Description | S6: 0.05 | T6: EA | U6: xx | W6: =IF(Instructions!$C$21="Group","Group",IF(Instructions!$C$21="Carter","Carter",50%)) -> 0.5 | X6: =IF(Instructions!$C$21="Group",#REF!,IF(Instructions!$C$21="Carter",#REF!,ROUNDUP($AA6*(1-W6),2))) -> 0.03 | Z6: new | AA6: 0.05 | AB6: 0.5 | AC6: 0.03 | AD6: 0 | AF6: 6 | AG6: 0.03 | AI6: 0.03 | AJ6: 0 | AK6: 0 | AN6: X
B7: 0 | E7: Size | G7: Shape | I7: Description | S7: =IF(Suggested="Yes",'Price List'!AA7,'Price List'!AG7) -> 0 | T7: EA | U7: G | W7: =+Instructions!$C$21 -> 0 | X7: =IF(Instructions!$C$21="Group",#REF!,ROUND($AA7*(1-W7)+0.004999,2)) -> 0 | Z7: new | AA7: 0 | AB7: 0 | AC7: 0 | AF7: 7 | AG7: 0 | AI7: 0 | AJ7: 0 | AK7: 0 | AN7: X
B8: Format | Q8: Stock | R8: a | S8: 1000 | T8: ABC | W8: 0.1 | X8: 1000 | Z8: ABC | AA8: 1000 | AB8: 0.1 | AC8: 1000 | AD8: 0.1 | AE8: 10 | AG8: 1000 | AN8: X
AN9: X
O10: Price List | W10: Cust. Cost | Z10: Customer Cost Calculation | AN10: X
D11: Sizes & Shapes | O11: Full Carton | Q11: Stock | R11: Note | S11: =IF(Suggested="Yes",AA11,AG11) -> List Price | T11: U/M | U11: Code | W11: Disc. | X11: Net | Z11: Chg | AA11: List Price | AB11: Disc | AC11: Act. Cost | AD11: GP% | AE11: Adj. | AF11: Group | AG11: Price | AI11: Calc Price | AJ11: .05 Round | AK11: Cents | AL11: Round to | AN11: X
AN12: X
O13: ="File '"&Instructions!D2&"' - "&Instructions!B1 -> File 'F' - Florida Tile | W13: Cost | AG13: Retail Price Calculations | AN13: X
T14: =+Instructions!B3 -> 4/1/24 (Updated) | AE14: =TODAY() -> 2024-12-06 | AN14: X
N15: =IF(Instructions!C7="","",+Instructions!C7) ->  | AN15: X
C16: ="Product Code '"&Instructions!B2&"'" -> Product Code 'G' | AG16: =IF(Instructions!$C$7="","",Instructions!$C$7) ->  | AN16: X
AN17: X
C18: Sizes & Shapes | O18: Full Carton | Q18: Stock | R18: Note | S18: =+S$11 -> List Price | T18: U/M | U18: =+U$11 -> Code | W18: Disc. | X18: Net | Z18: Chg | AA18: List Price | AB18: =+AB$11 -> Disc | AC18: Act. Cost | AD18: GP% | AE18: Adj. | AF18: =+AF$11 -> Group | AG18: Price | AI18: Calc Price | AJ18: .05 Round | AK18: Cents | AL18: Round to | AN18: X
C19: ALL ITEMS MARKED WITH PACKAGING QUANTITY ARE SOLD IN MULTIPLES OF THAT QUANTITY ONLY | AN19: X
AN20: X
C21: AINSLEE PARKHDP - Glazed Porcelain Floor & Ceramic Wall | R21: Item # Lookup: | S21: FTAIN | AN21: X
AN22: X
D23: Colors: | E23: AIN10 Calacatta Gold | I23: AIN30 Zebrino Taupe | AN23: X
E24: AIN20 Emperador Beige | I24: AIN40 Breccia Mist | AN24: X
B26: Field Tile | D26: Floor: | E26: 3.75" x 12" | G26: Field | I26: Rectified | P26: 6.12 SF/CTN | S26: =IF(Suggested="Yes",AA26,AG26) -> 14.85 | T26: SF | U26: =+Instructions!$B$21 -> G | W26: =+Instructions!$C$21 -> 0 | X26: =IF(Instructions!$C$21="Group",#REF!,IF(Instructions!$C$21="Carter",#REF!,ROUNDUP($AA26*(1-W26),2))) -> 14.85 | AA26: 14.85 | AB26: =+W26 -> 0 | AC26: 14.85 | AD26: =(AG26-AC26)/AG26 -> 0 | AF26: 1 | AG26: =SUM(AI26:AK26)+AE26 -> 14.85 | AI26: =ROUND(AC26/(1-VLOOKUP(AF26,Group,2,FALSE)),2) -> 14.85 | AJ26: =IF(VLOOKUP(AF26,Group,5,FALSE)="YES",VLOOKUP(ROUND(ROUND(AI26,1)-AI26,2),Round,2,FALSE)+VLOOKUP(AF26,Group,6,FALSE),0) -> 0 | AK26: =IF(VLOOKUP(AF26,Group,7,FALSE)="",0,ROUND(AI26-0.04999,1)-AI26+AL26) -> 0 | AL26: =IF(VLOOKUP(AF26,Group,7,FALSE)="","",VLOOKUP(AF26,Group,7,FALSE)) ->  | AN26: X
B27: Field Tile | E27: 12" x 12" | G27: Field | P27: 16.00 SF/CTN | Q27: Stock | R27: a | S27: =IF(Suggested="Yes",AA27,AG27) -> 5.3 | T27: SF | U27: =+Instructions!$B$21 -> G | W27: =+Instructions!$C$21 -> 0 | X27: =IF(Instructions!$C$21="Group",#REF!,IF(Instructions!$C$21="Carter",#REF!,ROUNDUP($AA27*(1-W27),2))) -> 5.3 | AA27: 5.3 | AB27: 0 | AC27: 5.3 | AD27: =(AG27-AC27)/AG27 -> 0 | AF27: 1 | AG27: =SUM(AI27:AK27)+AE27 -> 5.3 | AI27: =ROUND(AC27/(1-VLOOKUP(AF27,Group,2,FALSE)),2) -> 5.3 | AJ27: =IF(VLOOKUP(AF27,Group,5,FALSE)="YES",VLOOKUP(ROUND(ROUND(AI27,1)-AI27,2),Round,2,FALSE)+VLOOKUP(AF27,Group,6,FALSE),0) -> 0 | AK27: =IF(VLOOKUP(AF27,Group,7,FALSE)="",0,ROUND(AI27-0.04999,1)-AI27+AL27) -> 0 | AL27: =IF(VLOOKUP(AF27,Group,7,FALSE)="","",VLOOKUP(AF27,Group,7,FALSE)) ->  | AN27: X
B28: Field Tile | E28: 12" x 24" | G28: Field | P28: 15.30 SF/CTN | Q28: Stock | R28: a | S28: =IF(Suggested="Yes",AA28,AG28) -> 4.95 | T28: SF | U28: =+Instructions!$B$21 -> G | W28: =+Instructions!$C$21 -> 0 | X28: =IF(Instructions!$C$21="Group",#REF!,IF(Instructions!$C$21="Carter",#REF!,ROUNDUP($AA28*(1-W28),2))) -> 4.95 | AA28: 4.95 | AB28: 0 | AC28: 4.95 | AD28: =(AG28-AC28)/AG28 -> 0 | AF28: 1 | AG28: =SUM(AI28:AK28)+AE28 -> 4.95 | AI28: =ROUND(AC28/(1-VLOOKUP(AF28,Group,2,FALSE)),2) -> 4.95 | AJ28: =IF(VLOOKUP(AF28,Group,5,FALSE)="YES",VLOOKUP(ROUND(ROUND(AI28,1)-AI28,2),Round,2,FALSE)+VLOOKUP(AF28,Group,6,FALSE),0) -> 0 | AK28: =IF(VLOOKUP(AF28,Group,7,FALSE)="",0,ROUND(AI28-0.04999,1)-AI28+AL28) -> 0 | AL28: =IF(VLOOKUP(AF28,Group,7,FALSE)="","",VLOOKUP(AF28,Group,7,FALSE)) ->  | AN28: X
B30: Decos | E30: 12" x 12" | G30: M1x6STK | I30: Mosaic 1" x 6" Stack - AIN30 Zebrino Taupe | P30: 5 EA/CTN | S30: =IF(Suggested="Yes",AA30,AG30) -> 24.95 | T30: EA | U30: =+Instructions!$B$21 -> G | W30: =+Instructions!$C$21 -> 0 | X30: =IF(Instructions!$C$21="Group",#REF!,IF(Instructions!$C$21="Carter",#REF!,ROUNDUP($AA30*(1-W30),2))) -> 24.95 | AA30: 24.95 | AB30: =+W30 -> 0 | AC30: 24.95 | AD30: =(AG30-AC30)/AG30 -> 0 | AF30: 3 | AG30: =SUM(AI30:AK30)+AE30 -> 24.95 | AI30: =ROUND(AC30/(1-VLOOKUP(AF30,Group,2,FALSE)),2) -> 24.95 | AJ30: =IF(VLOOKUP(AF30,Group,5,FALSE)="YES",VLOOKUP(ROUND(ROUND(AI30,1)-AI30,2),Round,2,FALSE)+VLOOKUP(AF30,Group,6,FALSE),0) -> 0 | AK30: =IF(VLOOKUP(AF30,Group,7,FALSE)="",0,ROUND(AI30-0.04999,1)-AI30+AL30) -> 0 | AL30: =IF(VLOOKUP(AF30,Group,7,FALSE)="","",VLOOKUP(AF30,Group,7,FALSE)) ->  | AN30: X
B31: Decos | E31: 12" x 12" | G31: M122 | I31: Mosaic 2" x 2" - AIN10 Calacatta Gold | P31: 0.96 SF/SHEET | Q31: Stock | S31: =IF(Suggested="Yes",AA31,AG31) -> 31.35 | T31: EA | U31: =+Instructions!$B$21 -> G | W31: =+Instructions!$C$21 -> 0 | X31: =IF(Instructions!$C$21="Group",#REF!,IF(Instructions!$C$21="Carter",#REF!,ROUNDUP($AA31*(1-W31),2))) -> 31.35 | AA31: 31.35 | AB31: 0 | AC31: 31.35 | AD31: =(AG31-AC31)/AG31 -> 0 | AF31: 3 | AG31: =SUM(AI31:AK31)+AE31 -> 31.35 | AI31: =ROUND(AC31/(1-VLOOKUP(AF31,Group,2,FALSE)),2) -> 31.35 | AJ31: =IF(VLOOKUP(AF31,Group,5,FALSE)="YES",VLOOKUP(ROUND(ROUND(AI31,1)-AI31,2),Round,2,FALSE)+VLOOKUP(AF31,Group,6,FALSE),0) -> 0 | AK31: =IF(VLOOKUP(AF31,Group,7,FALSE)="",0,ROUND(AI31-0.04999,1)-AI31+AL31) -> 0 | AL31: =IF(VLOOKUP(AF31,Group,7,FALSE)="","",VLOOKUP(AF31,Group,7,FALSE)) ->  | AN31: X
B32: Decos | E32: 12" x 12" | G32: M122 | I32: Mosaic 2" x 2" - AIN20 Emperador Beige | P32: 5 EA/CTN | S32: =IF(Suggested="Yes",AA32,AG32) -> 31.35 | T32: EA | U32: =+Instructions!$B$21 -> G | W32: =+Instructions!$C$21 -> 0 | X32: =IF(Instructions!$C$21="Group",#REF!,IF(Instructions!$C$21="Carter",#REF!,ROUNDUP($AA32*(1-W32),2))) -> 31.35 | AA32: 31.35 | AB32: 0 | AC32: 31.35 | AD32: =(AG32-AC32)/AG32 -> 0 | AF32: 3 | AG32: =SUM(AI32:AK32)+AE32 -> 31.35 | AI32: =ROUND(AC32/(1-VLOOKUP(AF32,Group,2,FALSE)),2) -> 31.35 | AJ32: =IF(VLOOKUP(AF32,Group,5,FALSE)="YES",VLOOKUP(ROUND(ROUND(AI32,1)-AI32,2),Round,2,FALSE)+VLOOKUP(AF32,Group,6,FALSE),0) -> 0 | AK32: =IF(VLOOKUP(AF32,Group,7,FALSE)="",0,ROUND(AI32-0.04999,1)-AI32+AL32) -> 0 | AL32: =IF(VLOOKUP(AF32,Group,7,FALSE)="","",VLOOKUP(AF32,Group,7,FALSE)) ->  | AN32: X
B33: Decos | E33: 12" x 12" | G33: M122 | I33: Mosaic 2" x 2" - AIN40 Breccia Mist | P33: 5 EA/CTN | S33: =IF(Suggested="Yes",AA33,AG33) -> 31.35 | T33: EA | U33: =+Instructions!$B$21 -> G | W33: =+Instructions!$C$21 -> 0 | X33: =IF(Instructions!$C$21="Group",#REF!,IF(Instructions!$C$21="Carter",#REF!,ROUNDUP($AA33*(1-W33),2))) -> 31.35 | AA33: 31.35 | AB33: 0 | AC33: 31.35 | AD33: =(AG33-AC33)/AG33 -> 0 | AF33: 3 | AG33: =SUM(AI33:AK33)+AE33 -> 31.35 | AI33: =ROUND(AC33/(1-VLOOKUP(AF33,Group,2,FALSE)),2) -> 31.35 | AJ33: =IF(VLOOKUP(AF33,Group,5,FALSE)="YES",VLOOKUP(ROUND(ROUND(AI33,1)-AI33,2),Round,2,FALSE)+VLOOKUP(AF33,Group,6,FALSE),0) -> 0 | AK33: =IF(VLOOKUP(AF33,Group,7,FALSE)="",0,ROUND(AI33-0.04999,1)-AI33+AL33) -> 0 | AL33: =IF(VLOOKUP(AF33,Group,7,FALSE)="","",VLOOKUP(AF33,Group,7,FALSE)) ->  | AN33: X
B34: Decos | E34: 11" x 12.5" | G34: M4x4HEX | I34: Mosaic Hexagon - AIN55 Mix (0.84 SF/SHT) | P34: 5 EA/CTN | S34: =IF(Suggested="Yes",AA34,AG34) -> 54.05 | T34: EA | U34: =+Instructions!$B$21 -> G | W34: =+Instructions!$C$21 -> 0 | X34: =IF(Instructions!$C$21="Group",#REF!,IF(Instructions!$C$21="Carter",#REF!,ROUNDUP($AA34*(1-W34),2))) -> 54.05 | AA34: 54.05 | AB34: 0 | AC34: 54.05 | AD34: =(AG34-AC34)/AG34 -> 0 | AF34: 3 | AG34: =SUM(AI34:AK34)+AE34 -> 54.05 | AI34: =ROUND(AC34/(1-VLOOKUP(AF34,Group,2,FALSE)),2) -> 54.05 | AJ34: =IF(VLOOKUP(AF34,Group,5,FALSE)="YES",VLOOKUP(ROUND(ROUND(AI34,1)-AI34,2),Round,2,FALSE)+VLOOKUP(AF34,Group,6,FALSE),0) -> 0 | AK34: =IF(VLOOKUP(AF34,Group,7,FALSE)="",0,ROUND(AI34-0.04999,1)-AI34+AL34) -> 0 | AL34: =IF(VLOOKUP(AF34,Group,7,FALSE)="","",VLOOKUP(AF34,Group,7,FALSE)) ->  | AN34: X
B36: Trim | E36: 3" x 12" | G36: P43C9 | I36: Bullnose | Q36: Stock | R36: a | S36: =IF(Suggested="Yes",AA36,AG36) -> 10.35 | T36: EA | U36: =+Instructions!$B$21 -> G | W36: =+Instructions!$C$21 -> 0 | X36: =IF(Instructions!$C$21="Group",#REF!,IF(Instructions!$C$21="Carter",#REF!,ROUNDUP($AA36*(1-W36),2))) -> 10.35 | AA36: 10.35 | AB36: =+W36 -> 0 | AC36: =+X36 -> 10.35 | AD36: =(AG36-AC36)/AG36 -> 0 | AF36: 2 | AG36: =SUM(AI36:AK36)+AE36 -> 10.35 | AI36: =ROUND(AC36/(1-VLOOKUP(AF36,Group,2,FALSE)),2) -> 10.35 | AJ36: =IF(VLOOKUP(AF36,Group,5,FALSE)="YES",VLOOKUP(ROUND(ROUND(AI36,1)-AI36,2),Round,2,FALSE)+VLOOKUP(AF36,Group,6,FALSE),0) -> 0 | AK36: =IF(VLOOKUP(AF36,Group,7,FALSE)="",0,ROUND(AI36-0.04999,1)-AI36+AL36) -> 0 | AL36: =IF(VLOOKUP(AF36,Group,7,FALSE)="","",VLOOKUP(AF36,Group,7,FALSE)) ->  | AN36: X
AN37: X
D38: Colors: | E38: AIN1W Calacatta Gold | I38: AIN3W Zebrino Taupe | AN38: X
E39: AIN2W Emperador Beige | I39: AIN4W Breccia Mist | AN39: X
B41: Field Tile | D41: Wall: | E41: 12.1" x 24.4" | G41: Field | P41: 16.58 SF/CTN | Q41: Stock | R41: b,c | S41: =IF(Suggested="Yes",AA41,AG41) -> 6.95 | T41: SF | U41: =+Instructions!$B$21 -> G | W41: =+Instructions!$C$21 -> 0 | X41: =IF(Instructions!$C$21="Group",#REF!,IF(Instructions!$C$21="Carter",#REF!,ROUNDUP($AA41*(1-W41),2))) -> 6.95 | AA41: 6.95 | AB41: =+W41 -> 0 | AC41: =+X41 -> 6.95 | AD41: =(AG41-AC41)/AG41 -> 0 | AF41: 1 | AG41: =SUM(AI41:AK41)+AE41 -> 6.95 | AI41: =ROUND(AC41/(1-VLOOKUP(AF41,Group,2,FALSE)),2) -> 6.95 | AJ41: =IF(VLOOKUP(AF41,Group,5,FALSE)="YES",VLOOKUP(ROUND(ROUND(AI41,1)-AI41,2),Round,2,FALSE)+VLOOKUP(AF41,Group,6,FALSE),0) -> 0 | AK41: =IF(VLOOKUP(AF41,Group,7,FALSE)="",0,ROUND(AI41-0.04999,1)-AI41+AL41) -> 0 | AL41: =IF(VLOOKUP(AF41,Group,7,FALSE)="","",VLOOKUP(AF41,Group,7,FALSE)) ->  | AN41: X
B43: Decos | E43: 2" x 12" | G43: L2x12 | I43: Listello - AIN00 Brass | S43: =IF(Suggested="Yes",AA43,AG43) -> 25.2 | T43: EA | U43: =+Instructions!$B$21 -> G | W43: =+Instructions!$C$21 -> 0 | X43: =IF(Instructions!$C$21="Group",#REF!,IF(Instructions!$C$21="Carter",#REF!,ROUNDUP($AA43*(1-W43),2))) -> 25.2 | AA43: 25.2 | AB43: =+W43 -> 0 | AC43: =+X43 -> 25.2 | AD43: =(AG43-AC43)/AG43 -> 0 | AF43: 3 | AG43: =SUM(AI43:AK43)+AE43 -> 25.2 | AI43: =ROUND(AC43/(1-VLOOKUP(AF43,Group,2,FALSE)),2) -> 25.2 | AJ43: =IF(VLOOKUP(AF43,Group,5,FALSE)="YES",VLOOKUP(ROUND(ROUND(AI43,1)-AI43,2),Round,2,FALSE)+VLOOKUP(AF43,Group,6,FALSE),0) -> 0 | AK43: =IF(VLOOKUP(AF43,Group,7,FALSE)="",0,ROUND(AI43-0.04999,1)-AI43+AL43) -> 0 | AL43: =IF(VLOOKUP(AF43,Group,7,FALSE)="","",VLOOKUP(AF43,Group,7,FALSE)) ->  | AN43: X
B44: Decos | E44: 2" x 12" | G44: L2x12 | I44: Listello - AIN01 Steel | S44: =IF(Suggested="Yes",AA44,AG44) -> 25.2 | T44: EA | U44: =+Instructions!$B$21 -> G | W44: =+Instructions!$C$21 -> 0 | X44: =IF(Instructions!$C$21="Group",#REF!,IF(Instructions!$C$21="Carter",#REF!,ROUNDUP($AA44*(1-W44),2))) -> 25.2 | AA44: 25.2 | AB44: =+W44 -> 0 | AC44: =+X44 -> 25.2 | AD44: =(AG44-AC44)/AG44 -> 0 | AF44: 3 | AG44: =SUM(AI44:AK44)+AE44 -> 25.2 | AI44: =ROUND(AC44/(1-VLOOKUP(AF44,Group,2,FALSE)),2) -> 25.2 | AJ44: =IF(VLOOKUP(AF44,Group,5,FALSE)="YES",VLOOKUP(ROUND(ROUND(AI44,1)-AI44,2),Round,2,FALSE)+VLOOKUP(AF44,Group,6,FALSE),0) -> 0 | AK44: =IF(VLOOKUP(AF44,Group,7,FALSE)="",0,ROUND(AI44-0.04999,1)-AI44+AL44) -> 0 | AL44: =IF(VLOOKUP(AF44,Group,7,FALSE)="","",VLOOKUP(AF44,Group,7,FALSE)) ->  | AN44: X
B46: Trim | E46: 3" x 12" | G46: S43C9 | I46: Bullnose | Q46: Stock | R46: c | S46: =IF(Suggested="Yes",AA46,AG46) -> 10.3 | T46: EA | U46: =+Instructions!$B$21 -> G | W46: =+Instructions!$C$21 -> 0 | X46: =IF(Instructions!$C$21="Group",#REF!,IF(Instructions!$C$21="Carter",#REF!,ROUNDUP($AA46*(1-W46),2))) -> 10.3 | AA46: 10.3 | AB46: =+W46 -> 0 | AC46: =+X46 -> 10.3 | AD46: =(AG46-AC46)/AG46 -> 0 | AF46: 2 | AG46: =SUM(AI46:AK46)+AE46 -> 10.3 | AI46: =ROUND(AC46/(1-VLOOKUP(AF46,Group,2,FALSE)),2) -> 10.3 | AJ46: =IF(VLOOKUP(AF46,Group,5,FALSE)="YES",VLOOKUP(ROUND(ROUND(AI46,1)-AI46,2),Round,2,FALSE)+VLOOKUP(AF46,Group,6,FALSE),0) -> 0 | AK46: =IF(VLOOKUP(AF46,Group,7,FALSE)="",0,ROUND(AI46-0.04999,1)-AI46+AL46) -> 0 | AL46: =IF(VLOOKUP(AF46,Group,7,FALSE)="","",VLOOKUP(AF46,Group,7,FALSE)) ->  | AN46: X
B47: Trim | E47: 3" x 3" | G47: SN4339 | I47: Bullnose Corner | R47: d | S47: =IF(Suggested="Yes",AA47,AG47) -> 8.7 | T47: EA | U47: =+Instructions!$B$21 -> G | W47: =+Instructions!$C$21 -> 0 | X47: =IF(Instructions!$C$21="Group",#REF!,IF(Instructions!$C$21="Carter",#REF!,ROUNDUP($AA47*(1-W47),2))) -> 8.7 | AA47: 8.7 | AB47: =+W47 -> 0 | AC47: =+X47 -> 8.7 | AD47: =(AG47-AC47)/AG47 -> 0 | AF47: 2 | AG47: =SUM(AI47:AK47)+AE47 -> 8.7 | AI47: =ROUND(AC47/(1-VLOOKUP(AF47,Group,2,FALSE)),2) -> 8.7 | AJ47: =IF(VLOOKUP(AF47,Group,5,FALSE)="YES",VLOOKUP(ROUND(ROUND(AI47,1)-AI47,2),Round,2,FALSE)+VLOOKUP(AF47,Group,6,FALSE),0) -> 0 | AK47: =IF(VLOOKUP(AF47,Group,7,FALSE)="",0,ROUND(AI47-0.04999,1)-AI47+AL47) -> 0 | AL47: =IF(VLOOKUP(AF47,Group,7,FALSE)="","",VLOOKUP(AF47,Group,7,FALSE)) ->  | AN47: X
AN48: X
D49: Notes: | E49: All Mosaics are Mesh-Mounted. | I49: a) Stocked in color AIN10 Calacatta Gold only. | AN49: X
E50: b) The 12.1" x 24.4" Wall Field Tile format is transitioning from 8.5mm to 7mm in thickness as inventories of the old | AN50: X
E51: thickness are depleted. Packaging of the old 12" x 24" x 8.5mm Field Tile is 14.35 SF/CTN. Check with Customer | AN51: X
E52: Service to be sure which packaging amount you will be receiving. | AN52: X
E53: c) Stocked in color AIN1W Calacatta Gold only. | K53: d) Not available in color AIN3W Zebrino Taupe. | AN53: X
C55: ALUSTRAHDP - Color Body Glazed Porcelain Floor & Wall (Rectified) | R55: Item # Lookup: | S55: FTALU
AN56: X
D57: Colors: | E57: ALU10 Majestic White Lasa | I57: ALU30 Opulent Beige Onyx | M57: ALU50 Regal Black | AN57: X
E58: ALU20 Imperial Gold Calacatta | I58: ALU40 Sovereign Gray
B60: Field Tile | E60: 12" x 24" | G60: Field | I60: Matte | P60: 15.62 SF/CTN | Q60: Stock | S60: =IF(Suggested="Yes",AA60,AG60) -> 5.95 | T60: SF | U60: =+Instructions!$B$21 -> G | W60: =+Instructions!$C$21 -> 0 | X60: =IF(Instructions!$C$21="Group",#REF!,IF(Instructions!$C$21="Carter",#REF!,ROUNDUP($AA60*(1-W60),2))) -> 5.95 | AA60: 5.95 | AB60: =+W60 -> 0 | AC60: 5.95 | AD60: =(AG60-AC60)/AG60 -> 0 | AF60: 1 | AG60: =SUM(AI60:AK60)+AE60 -> 5.95 | AI60: =ROUND(AC60/(1-VLOOKUP(AF60,Group,2,FALSE)),2) -> 5.95 | AJ60: =IF(VLOOKUP(AF60,Group,5,FALSE)="YES",VLOOKUP(ROUND(ROUND(AI60,1)-AI60,2),Round,2,FALSE)+VLOOKUP(AF60,Group,6,FALSE),0) -> 0 | AK60: =IF(VLOOKUP(AF60,Group,7,FALSE)="",0,ROUND(AI60-0.04999,1)-AI60+AL60) -> 0 | AL60: =IF(VLOOKUP(AF60,Group,7,FALSE)="","",VLOOKUP(AF60,Group,7,FALSE)) ->  | AN60: X
B61: Field Tile | E61: 24" x 24" | G61: Field | I61: Matte | P61: 15.58 SF/CTN | S61: =IF(Suggested="Yes",AA61,AG61) -> 8.1 | T61: SF | U61: =+Instructions!$B$21 -> G | W61: =+Instructions!$C$21 -> 0 | X61: =IF(Instructions!$C$21="Group",#REF!,IF(Instructions!$C$21="Carter",#REF!,ROUNDUP($AA61*(1-W61),2))) -> 8.1 | AA61: 8.1 | AB61: 0 | AC61: 8.1 | AD61: =(AG61-AC61)/AG61 -> 0 | AF61: 1 | AG61: =SUM(AI61:AK61)+AE61 -> 8.1 | AI61: =ROUND(AC61/(1-VLOOKUP(AF61,Group,2,FALSE)),2) -> 8.1 | AJ61: =IF(VLOOKUP(AF61,Group,5,FALSE)="YES",VLOOKUP(ROUND(ROUND(AI61,1)-AI61,2),Round,2,FALSE)+VLOOKUP(AF61,Group,6,FALSE),0) -> 0 | AK61: =IF(VLOOKUP(AF61,Group,7,FALSE)="",0,ROUND(AI61-0.04999,1)-AI61+AL61) -> 0 | AL61: =IF(VLOOKUP(AF61,Group,7,FALSE)="","",VLOOKUP(AF61,Group,7,FALSE)) ->  | AN61: X
B62: Field Tile | E62: 24" x 48" | G62: Field | I62: Matte | P62: 15.39 SF/CTN | S62: =IF(Suggested="Yes",AA62,AG62) -> 7.75 | T62: SF | U62: =+Instructions!$B$21 -> G | W62: =+Instructions!$C$21 -> 0 | X62: =IF(Instructions!$C$21="Group",#REF!,IF(Instructions!$C$21="Carter",#REF!,ROUNDUP($AA62*(1-W62),2))) -> 7.75 | AA62: 7.75 | AB62: 0 | AC62: 7.75 | AD62: =(AG62-AC62)/AG62 -> 0 | AF62: 1 | AG62: =SUM(AI62:AK62)+AE62 -> 7.75 | AI62: =ROUND(AC62/(1-VLOOKUP(AF62,Group,2,FALSE)),2) -> 7.75 | AJ62: =IF(VLOOKUP(AF62,Group,5,FALSE)="YES",VLOOKUP(ROUND(ROUND(AI62,1)-AI62,2),Round,2,FALSE)+VLOOKUP(AF62,Group,6,FALSE),0) -> 0 | AK62: =IF(VLOOKUP(AF62,Group,7,FALSE)="",0,ROUND(AI62-0.04999,1)-AI62+AL62) -> 0 | AL62: =IF(VLOOKUP(AF62,Group,7,FALSE)="","",VLOOKUP(AF62,Group,7,FALSE)) ->  | AN62: X
B64: Decos | E64: 12" x 12" | G64: M12 | I64: Matte | K64: Mosaic 2-1/4" x 2-1/4" (0.97 SF/SHEET) | P64: 5 EA/CTN | S64: =IF(Suggested="Yes",AA64,AG64) -> 21.15 | T64: EA | U64: =+Instructions!$B$21 -> G | W64: =+Instructions!$C$21 -> 0 | X64: =IF(Instructions!$C$21="Group",#REF!,IF(Instructions!$C$21="Carter",#REF!,ROUNDUP($AA64*(1-W64),2))) -> 21.15 | Z64: new | AA64: 21.15 | AB64: =+W64 -> 0 | AC64: =+X64 -> 21.15 | AD64: =(AG64-AC64)/AG64 -> 0 | AF64: 3 | AG64: =SUM(AI64:AK64)+AE64 -> 21.15 | AI64: =ROUND(AC64/(1-VLOOKUP(AF64,Group,2,FALSE)),2) -> 21.15 | AJ64: =IF(VLOOKUP(AF64,Group,5,FALSE)="YES",VLOOKUP(ROUND(ROUND(AI64,1)-AI64,2),Round,2,FALSE)+VLOOKUP(AF64,Group,6,FALSE),0) -> 0 | AK64: =IF(VLOOKUP(AF64,Group,7,FALSE)="",0,ROUND(AI64-0.04999,1)-AI64+AL64) -> 0 | AL64: =IF(VLOOKUP(AF64,Group,7,FALSE)="","",VLOOKUP(AF64,Group,7,FALSE)) ->  | AN64: X
B65: Decos | E65: 9" x 16-3/4" | G65: M2x6CHEV | I65: Matte | K65: Mosaic 2" x 6" Chevron (1.05 SF/SHEET) | P65: 5 EA/CTN | S65: =IF(Suggested="Yes",AA65,AG65) -> 53.7 | T65: EA | U65: =+Instructions!$B$21 -> G | W65: =+Instructions!$C$21 -> 0 | X65: =IF(Instructions!$C$21="Group",#REF!,IF(Instructions!$C$21="Carter",#REF!,ROUNDUP($AA65*(1-W65),2))) -> 53.7 | AA65: 53.7 | AB65: =+W65 -> 0 | AC65: =+X65 -> 53.7 | AD65: =(AG65-AC65)/AG65 -> 0 | AF65: 3 | AG65: =SUM(AI65:AK65)+AE65 -> 53.7 | AI65: =ROUND(AC65/(1-VLOOKUP(AF65,Group,2,FALSE)),2) -> 53.7 | AJ65: =IF(VLOOKUP(AF65,Group,5,FALSE)="YES",VLOOKUP(ROUND(ROUND(AI65,1)-AI65,2),Round,2,FALSE)+VLOOKUP(AF65,Group,6,FALSE),0) -> 0 | AK65: =IF(VLOOKUP(AF65,Group,7,FALSE)="",0,ROUND(AI65-0.04999,1)-AI65+AL65) -> 0 | AL65: =IF(VLOOKUP(AF65,Group,7,FALSE)="","",VLOOKUP(AF65,Group,7,FALSE)) ->  | AN65: X
B66: Decos | E66: 10-1/4" x 11-3/4" | G66: M3x3HEX | I66: Matte | K66: Mosaic 3" x 3" Hex (0.83 SF/SHEET) | P66: 5 EA/CTN | S66: =IF(Suggested="Yes",AA66,AG66) -> 57.65 | T66: EA | U66: =+Instructions!$B$21 -> G | W66: =+Instructions!$C$21 -> 0 | X66: =IF(Instructions!$C$21="Group",#REF!,IF(Instructions!$C$21="Carter",#REF!,ROUNDUP($AA66*(1-W66),2))) -> 57.65 | AA66: 57.65 | AB66: =+W66 -> 0 | AC66: =+X66 -> 57.65 | AD66: =(AG66-AC66)/AG66 -> 0 | AF66: 3 | AG66: =SUM(AI66:AK66)+AE66 -> 57.65 | AI66: =ROUND(AC66/(1-VLOOKUP(AF66,Group,2,FALSE)),2) -> 57.65 | AJ66: =IF(VLOOKUP(AF66,Group,5,FALSE)="YES",VLOOKUP(ROUND(ROUND(AI66,1)-AI66,2),Round,2,FALSE)+VLOOKUP(AF66,Group,6,FALSE),0) -> 0 | AK66: =IF(VLOOKUP(AF66,Group,7,FALSE)="",0,ROUND(AI66-0.04999,1)-AI66+AL66) -> 0 | AL66: =IF(VLOOKUP(AF66,Group,7,FALSE)="","",VLOOKUP(AF66,Group,7,FALSE)) ->  | AN66: X
B68: Trim | E68: 3" x 24" | G68: P43N9 | I68: Matte | K68: Bullnose | S68: =IF(Suggested="Yes",AA68,AG68) -> 15.45 | T68: EA | U68: =+Instructions!$B$21 -> G | W68: =+Instructions!$C$21 -> 0 | X68: =IF(Instructions!$C$21="Group",#REF!,IF(Instructions!$C$21="Carter",#REF!,ROUNDUP($AA68*(1-W68),2))) -> 15.45 | AA68: 15.45 | AB68: =+W68 -> 0 | AC68: =+X68 -> 15.45 | AD68: =(AG68-AC68)/AG68 -> 0 | AF68: 2 | AG68: =SUM(AI68:AK68)+AE68 -> 15.45 | AI68: =ROUND(AC68/(1-VLOOKUP(AF68,Group,2,FALSE)),2) -> 15.45 | AJ68: =IF(VLOOKUP(AF68,Group,5,FALSE)="YES",VLOOKUP(ROUND(ROUND(AI68,1)-AI68,2),Round,2,FALSE)+VLOOKUP(AF68,Group,6,FALSE),0) -> 0 | AK68: =IF(VLOOKUP(AF68,Group,7,FALSE)="",0,ROUND(AI68-0.04999,1)-AI68+AL68) -> 0 | AL68: =IF(VLOOKUP(AF68,Group,7,FALSE)="","",VLOOKUP(AF68,Group,7,FALSE)) ->  | AN68: X
AN69: X
D70: Colors: | E70: ALU10P Majestic White Lasa | I70: ALU30P Opulent Beige Onyx | M70: ALU50P Regal Black | AN70: X
E71: ALU20P Imperial Gold Calacatta | I71: ALU40P Sovereign Gray
B73: Field Tile | E73: 12" x 24" | G73: Field | I73: Polished | P73: 15.62 SF/CTN | Q73: Stock | S73: =IF(Suggested="Yes",AA73,AG73) -> 8.55 | T73: SF | U73: =+Instructions!$B$21 -> G | W73: =+Instructions!$C$21 -> 0 | X73: =IF(Instructions!$C$21="Group",#REF!,IF(Instructions!$C$21="Carter",#REF!,ROUNDUP($AA73*(1-W73),2))) -> 8.55 | AA73: 8.55 | AB73: =+W73 -> 0 | AC73: 8.55 | AD73: =(AG73-AC73)/AG73 -> 0 | AF73: 1 | AG73: =SUM(AI73:AK73)+AE73 -> 8.55 | AI73: =ROUND(AC73/(1-VLOOKUP(AF73,Group,2,FALSE)),2) -> 8.55 | AJ73: =IF(VLOOKUP(AF73,Group,5,FALSE)="YES",VLOOKUP(ROUND(ROUND(AI73,1)-AI73,2),Round,2,FALSE)+VLOOKUP(AF73,Group,6,FALSE),0) -> 0 | AK73: =IF(VLOOKUP(AF73,Group,7,FALSE)="",0,ROUND(AI73-0.04999,1)-AI73+AL73) -> 0 | AL73: =IF(VLOOKUP(AF73,Group,7,FALSE)="","",VLOOKUP(AF73,Group,7,FALSE)) ->  | AN73: X
B74: Field Tile | E74: 24" x 24" | G74: Field | I74: Polished | P74: 15.50 SF/CTN | R74: a | S74: =IF(Suggested="Yes",AA74,AG74) -> 8.55 | T74: SF | U74: =+Instructions!$B$21 -> G | W74: =+Instructions!$C$21 -> 0 | X74: =IF(Instructions!$C$21="Group",#REF!,IF(Instructions!$C$21="Carter",#REF!,ROUNDUP($AA74*(1-W74),2))) -> 8.55 | AA74: 8.55 | AB74: 0 | AC74: 8.55 | AD74: =(AG74-AC74)/AG74 -> 0 | AF74: 1 | AG74: =SUM(AI74:AK74)+AE74 -> 8.55 | AI74: =ROUND(AC74/(1-VLOOKUP(AF74,Group,2,FALSE)),2) -> 8.55 | AJ74: =IF(VLOOKUP(AF74,Group,5,FALSE)="YES",VLOOKUP(ROUND(ROUND(AI74,1)-AI74,2),Round,2,FALSE)+VLOOKUP(AF74,Group,6,FALSE),0) -> 0 | AK74: =IF(VLOOKUP(AF74,Group,7,FALSE)="",0,ROUND(AI74-0.04999,1)-AI74+AL74) -> 0 | AL74: =IF(VLOOKUP(AF74,Group,7,FALSE)="","",VLOOKUP(AF74,Group,7,FALSE)) ->  | AN74: X
B75: Field Tile | E75: 24" x 48" | G75: Field | I75: Polished | P75: 15.39 SF/CTN | Q75: Stock | S75: =IF(Suggested="Yes",AA75,AG75) -> 9.15 | T75: SF | U75: =+Instructions!$B$21 -> G | W75: =+Instructions!$C$21 -> 0 | X75: =IF(Instructions!$C$21="Group",#REF!,IF(Instructions!$C$21="Carter",#REF!,ROUNDUP($AA75*(1-W75),2))) -> 9.15 | AA75: 9.15 | AB75: 0 | AC75: 9.15 | AD75: =(AG75-AC75)/AG75 -> 0 | AF75: 1 | AG75: =SUM(AI75:AK75)+AE75 -> 9.15 | AI75: =ROUND(AC75/(1-VLOOKUP(AF75,Group,2,FALSE)),2) -> 9.15 | AJ75: =IF(VLOOKUP(AF75,Group,5,FALSE)="YES",VLOOKUP(ROUND(ROUND(AI75,1)-AI75,2),Round,2,FALSE)+VLOOKUP(AF75,Group,6,FALSE),0) -> 0 | AK75: =IF(VLOOKUP(AF75,Group,7,FALSE)="",0,ROUND(AI75-0.04999,1)-AI75+AL75) -> 0 | AL75: =IF(VLOOKUP(AF75,Group,7,FALSE)="","",VLOOKUP(AF75,Group,7,FALSE)) ->  | AN75: X
B77: Decos | E77: 3/4" x 24" | G77: L3/4x24 | I77: Polished | K77: Inlay Liner - Gold | R77: b | S77: =IF(Suggested="Yes",AA77,AG77) -> 49.25 | T77: EA | U77: =+Instructions!$B$21 -> G | W77: =+Instructions!$C$21 -> 0 | X77: =IF(Instructions!$C$21="Group",#REF!,IF(Instructions!$C$21="Carter",#REF!,ROUNDUP($AA77*(1-W77),2))) -> 49.25 | AA77: 49.25 | AB77: =+W77 -> 0 | AC77: =+X77 -> 49.25 | AD77: =(AG77-AC77)/AG77 -> 0 | AF77: 3 | AG77: =SUM(AI77:AK77)+AE77 -> 49.25 | AI77: =ROUND(AC77/(1-VLOOKUP(AF77,Group,2,FALSE)),2) -> 49.25 | AJ77: =IF(VLOOKUP(AF77,Group,5,FALSE)="YES",VLOOKUP(ROUND(ROUND(AI77,1)-AI77,2),Round,2,FALSE)+VLOOKUP(AF77,Group,6,FALSE),0) -> 0 | AK77: =IF(VLOOKUP(AF77,Group,7,FALSE)="",0,ROUND(AI77-0.04999,1)-AI77+AL77) -> 0 | AL77: =IF(VLOOKUP(AF77,Group,7,FALSE)="","",VLOOKUP(AF77,Group,7,FALSE)) ->  | AN77: X
B78: Decos | E78: 3/4" x 24" | G78: L3/4x24 | I78: Polished | K78: Inlay Liner - Silver | R78: c | S78: =IF(Suggested="Yes",AA78,AG78) -> 49.25 | T78: EA | U78: =+Instructions!$B$21 -> G | W78: =+Instructions!$C$21 -> 0 | X78: =IF(Instructions!$C$21="Group",#REF!,IF(Instructions!$C$21="Carter",#REF!,ROUNDUP($AA78*(1-W78),2))) -> 49.25 | AA78: 49.25 | AB78: =+W78 -> 0 | AC78: =+X78 -> 49.25 | AD78: =(AG78-AC78)/AG78 -> 0 | AF78: 3 | AG78: =SUM(AI78:AK78)+AE78 -> 49.25 | AI78: =ROUND(AC78/(1-VLOOKUP(AF78,Group,2,FALSE)),2) -> 49.25 | AJ78: =IF(VLOOKUP(AF78,Group,5,FALSE)="YES",VLOOKUP(ROUND(ROUND(AI78,1)-AI78,2),Round,2,FALSE)+VLOOKUP(AF78,Group,6,FALSE),0) -> 0 | AK78: =IF(VLOOKUP(AF78,Group,7,FALSE)="",0,ROUND(AI78-0.04999,1)-AI78+AL78) -> 0 | AL78: =IF(VLOOKUP(AF78,Group,7,FALSE)="","",VLOOKUP(AF78,Group,7,FALSE)) ->  | AN78: X
B80: Decos | E80: 10-1/2" x 11-1/2" | G80: M4x6ARCH | I80: Polished | K80: Mosaic 4" x 6" Arch (0.84 SF/SHEET) | P80: 5 EA/CTN | S80: =IF(Suggested="Yes",AA80,AG80) -> 72.4 | T80: EA | U80: =+Instructions!$B$21 -> G | W80: =+Instructions!$C$21 -> 0 | X80: =IF(Instructions!$C$21="Group",#REF!,IF(Instructions!$C$21="Carter",#REF!,ROUNDUP($AA80*(1-W80),2))) -> 72.4 | AA80: 72.4 | AB80: =+W80 -> 0 | AC80: 72.4 | AD80: =(AG80-AC80)/AG80 -> 0 | AF80: 3 | AG80: =SUM(AI80:AK80)+AE80 -> 72.4 | AI80: =ROUND(AC80/(1-VLOOKUP(AF80,Group,2,FALSE)),2) -> 72.4 | AJ80: =IF(VLOOKUP(AF80,Group,5,FALSE)="YES",VLOOKUP(ROUND(ROUND(AI80,1)-AI80,2),Round,2,FALSE)+VLOOKUP(AF80,Group,6,FALSE),0) -> 0 | AK80: =IF(VLOOKUP(AF80,Group,7,FALSE)="",0,ROUND(AI80-0.04999,1)-AI80+AL80) -> 0 | AL80: =IF(VLOOKUP(AF80,Group,7,FALSE)="","",VLOOKUP(AF80,Group,7,FALSE)) ->  | AN80: X
B81: Decos | E81: 9" x 16-3/4" | G81: M2x6CHEV | I81: Polished | K81: Mosaic 2" x 6" Chevron (1.05 SF/SHEET) | P81: 5 EA/CTN | S81: =IF(Suggested="Yes",AA81,AG81) -> 78 | T81: EA | U81: =+Instructions!$B$21 -> G | W81: =+Instructions!$C$21 -> 0 | X81: =IF(Instructions!$C$21="Group",#REF!,IF(Instructions!$C$21="Carter",#REF!,ROUNDUP($AA81*(1-W81),2))) -> 78 | AA81: 78 | AB81: 0 | AC81: 78 | AD81: =(AG81-AC81)/AG81 -> 0 | AF81: 3 | AG81: =SUM(AI81:AK81)+AE81 -> 78 | AI81: =ROUND(AC81/(1-VLOOKUP(AF81,Group,2,FALSE)),2) -> 78 | AJ81: =IF(VLOOKUP(AF81,Group,5,FALSE)="YES",VLOOKUP(ROUND(ROUND(AI81,1)-AI81,2),Round,2,FALSE)+VLOOKUP(AF81,Group,6,FALSE),0) -> 0 | AK81: =IF(VLOOKUP(AF81,Group,7,FALSE)="",0,ROUND(AI81-0.04999,1)-AI81+AL81) -> 0 | AL81: =IF(VLOOKUP(AF81,Group,7,FALSE)="","",VLOOKUP(AF81,Group,7,FALSE)) ->  | AN81: X
B82: Decos | E82: 10-1/4" x 11-3/4" | G82: M3x3HEX | I82: Polished | K82: Mosaic 3" x 3" Hex (0.83 SF/SHEET) | P82: 5 EA/CTN | S82: =IF(Suggested="Yes",AA82,AG82) -> 82.2 | T82: EA | U82: =+Instructions!$B$21 -> G | W82: =+Instructions!$C$21 -> 0 | X82: =IF(Instructions!$C$21="Group",#REF!,IF(Instructions!$C$21="Carter",#REF!,ROUNDUP($AA82*(1-W82),2))) -> 82.2 | AA82: 82.2 | AB82: 0 | AC82: 82.2 | AD82: =(AG82-AC82)/AG82 -> 0 | AF82: 3 | AG82: =SUM(AI82:AK82)+AE82 -> 82.2 | AI82: =ROUND(AC82/(1-VLOOKUP(AF82,Group,2,FALSE)),2) -> 82.2 | AJ82: =IF(VLOOKUP(AF82,Group,5,FALSE)="YES",VLOOKUP(ROUND(ROUND(AI82,1)-AI82,2),Round,2,FALSE)+VLOOKUP(AF82,Group,6,FALSE),0) -> 0 | AK82: =IF(VLOOKUP(AF82,Group,7,FALSE)="",0,ROUND(AI82-0.04999,1)-AI82+AL82) -> 0 | AL82: =IF(VLOOKUP(AF82,Group,7,FALSE)="","",VLOOKUP(AF82,Group,7,FALSE)) ->  | AN82: X
B84: Trim | E84: 3" x 24" | G84: P43N9 | I84: Polished | K84: Bullnose | Q84: Stock | S84: =IF(Suggested="Yes",AA84,AG84) -> 19.45 | T84: EA | U84: =+Instructions!$B$21 -> G | W84: =+Instructions!$C$21 -> 0 | X84: =IF(Instructions!$C$21="Group",#REF!,IF(Instructions!$C$21="Carter",#REF!,ROUNDUP($AA84*(1-W84),2))) -> 19.45 | AA84: 19.45 | AB84: =+W84 -> 0 | AC84: =+X84 -> 19.45 | AD84: =(AG84-AC84)/AG84 -> 0 | AF84: 2 | AG84: =SUM(AI84:AK84)+AE84 -> 19.45 | AI84: =ROUND(AC84/(1-VLOOKUP(AF84,Group,2,FALSE)),2) -> 19.45 | AJ84: =IF(VLOOKUP(AF84,Group,5,FALSE)="YES",VLOOKUP(ROUND(ROUND(AI84,1)-AI84,2),Round,2,FALSE)+VLOOKUP(AF84,Group,6,FALSE),0) -> 0 | AK84: =IF(VLOOKUP(AF84,Group,7,FALSE)="",0,ROUND(AI84-0.04999,1)-AI84+AL84) -> 0 | AL84: =IF(VLOOKUP(AF84,Group,7,FALSE)="","",VLOOKUP(AF84,Group,7,FALSE)) ->  | AN84: X
D86: Notes: | E86: All Mosaics are Mesh-Mounted. | AN86: X
E87: a) Packaging is changing from 15.50 SF/CTN to 15.58 SF/CTN as inventory with old packaging is depleted. | AN87: X
E88: b) Available in colors ALU20P Imperial Gold Calacatta and ALU30P Opulent Beige Onyx only. | AN88: X
E89: c) Available in colors ALU10P Majestic White Lasa, ALU40P Sovereign Gray and ALU50P Regal Black only. | AN89: X
C91: AMPLIFY - Glazed Ceramic Wall (Rectified) | R91: Item # Lookup: | S91: FTAM | AN91: X
AN92: X
D93: Colors: | E93: Black (Matte) Branco Brilho (Glossy) Deep Blue (Matte) White (Matte) | AN93: X
B95: Field Tile | E95: 12" x 24" | G95: Field | P95: 15.50 SF/CTN | S95: =IF(Suggested="Yes",AA95,AG95) -> 8.95 | T95: SF | U95: =+Instructions!$B$21 -> G | W95: =+Instructions!$C$21 -> 0 | X95: =IF(Instructions!$C$21="Group",#REF!,IF(Instructions!$C$21="Carter",#REF!,ROUNDUP($AA95*(1-W95),2))) -> 8.95 | AA95: 8.95 | AB95: =+W95 -> 0 | AC95: =+X95 -> 8.95 | AD95: =(AG95-AC95)/AG95 -> 0 | AF95: 1 | AG95: =SUM(AI95:AK95)+AE95 -> 8.95 | AI95: =ROUND(AC95/(1-VLOOKUP(AF95,Group,2,FALSE)),2) -> 8.95 | AJ95: =IF(VLOOKUP(AF95,Group,5,FALSE)="YES",VLOOKUP(ROUND(ROUND(AI95,1)-AI95,2),Round,2,FALSE)+VLOOKUP(AF95,Group,6,FALSE),0) -> 0 | AK95: =IF(VLOOKUP(AF95,Group,7,FALSE)="",0,ROUND(AI95-0.04999,1)-AI95+AL95) -> 0 | AL95: =IF(VLOOKUP(AF95,Group,7,FALSE)="","",VLOOKUP(AF95,Group,7,FALSE)) ->  | AN95: X
AN96: X
B97: Trim | E97: 3" x 12" | G97: S43C9 | I97: Bullnose | S97: =IF(Suggested="Yes",AA97,AG97) -> 10.9 | T97: EA | U97: =+Instructions!$B$21 -> G | W97: =+Instructions!$C$21 -> 0 | X97: =IF(Instructions!$C$21="Group",#REF!,IF(Instructions!$C$21="Carter",#REF!,ROUNDUP($AA97*(1-W97),2))) -> 10.9 | AA97: 10.9 | AB97: =+W97 -> 0 | AC97: =+X97 -> 10.9 | AD97: =(AG97-AC97)/AG97 -> 0 | AF97: 2 | AG97: =SUM(AI97:AK97)+AE97 -> 10.9 | AI97: =ROUND(AC97/(1-VLOOKUP(AF97,Group,2,FALSE)),2) -> 10.9 | AJ97: =IF(VLOOKUP(AF97,Group,5,FALSE)="YES",VLOOKUP(ROUND(ROUND(AI97,1)-AI97,2),Round,2,FALSE)+VLOOKUP(AF97,Group,6,FALSE),0) -> 0 | AK97: =IF(VLOOKUP(AF97,Group,7,FALSE)="",0,ROUND(AI97-0.04999,1)-AI97+AL97) -> 0 | AL97: =IF(VLOOKUP(AF97,Group,7,FALSE)="","",VLOOKUP(AF97,Group,7,FALSE)) ->  | AN97: X
AN98: X
D99: Dimensional Patterns: | AN99: X
AN100: X
B101: Decos | E101: 12" x 24" | G101: Field | I101: Arid - White (Glossy) | P101: 15.50 SF/CTN | S101: =IF(Suggested="Yes",AA101,AG101) -> 10.7 | T101: SF | U101: =+Instructions!$B$21 -> G | W101: =+Instructions!$C$21 -> 0 | X101: =IF(Instructions!$C$21="Group",#REF!,IF(Instructions!$C$21="Carter",#REF!,ROUNDUP($AA101*(1-W101),2))) -> 10.7 | AA101: 10.7 | AB101: =+W101 -> 0 | AC101: 10.7 | AD101: =(AG101-AC101)/AG101 -> 0 | AF101: 3 | AG101: =SUM(AI101:AK101)+AE101 -> 10.7 | AI101: =ROUND(AC101/(1-VLOOKUP(AF101,Group,2,FALSE)),2) -> 10.7 | AJ101: =IF(VLOOKUP(AF101,Group,5,FALSE)="YES",VLOOKUP(ROUND(ROUND(AI101,1)-AI101,2),Round,2,FALSE)+VLOOKUP(AF101,Group,6,FALSE),0) -> 0 | AK101: =IF(VLOOKUP(AF101,Group,7,FALSE)="",0,ROUND(AI101-0.04999,1)-AI101+AL101) -> 0 | AL101: =IF(VLOOKUP(AF101,Group,7,FALSE)="","",VLOOKUP(AF101,Group,7,FALSE)) ->  | AN101: X
B102: Decos | E102: 12" x 24" | G102: Field | I102: Reef - Deep Blue (Matte) | P102: 13.56 SF/CTN | S102: =IF(Suggested="Yes",AA102,AG102) -> 10.7 | T102: SF | U102: =+Instructions!$B$21 -> G | W102: =+Instructions!$C$21 -> 0 | X102: =IF(Instructions!$C$21="Group",#REF!,IF(Instructions!$C$21="Carter",#REF!,ROUNDUP($AA102*(1-W102),2))) -> 10.7 | AA102: 10.7 | AB102: 0 | AC102: 10.7 | AD102: =(AG102-AC102)/AG102 -> 0 | AF102: 3 | AG102: =SUM(AI102:AK102)+AE102 -> 10.7 | AI102: =ROUND(AC102/(1-VLOOKUP(AF102,Group,2,FALSE)),2) -> 10.7 | AJ102: =IF(VLOOKUP(AF102,Group,5,FALSE)="YES",VLOOKUP(ROUND(ROUND(AI102,1)-AI102,2),Round,2,FALSE)+VLOOKUP(AF102,Group,6,FALSE),0) -> 0 | AK102: =IF(VLOOKUP(AF102,Group,7,FALSE)="",0,ROUND(AI102-0.04999,1)-AI102+AL102) -> 0 | AL102: =IF(VLOOKUP(AF102,Group,7,FALSE)="","",VLOOKUP(AF102,Group,7,FALSE)) ->  | AN102: X
B103: Decos | E103: 12" x 24" | G103: Field | I103: Reef - White (Matte) | P103: 13.56 SF/CTN | S103: =IF(Suggested="Yes",AA103,AG103) -> 10.7 | T103: SF | U103: =+Instructions!$B$21 -> G | W103: =+Instructions!$C$21 -> 0 | X103: =IF(Instructions!$C$21="Group",#REF!,IF(Instructions!$C$21="Carter",#REF!,ROUNDUP($AA103*(1-W103),2))) -> 10.7 | AA103: 10.7 | AB103: 0 | AC103: 10.7 | AD103: =(AG103-AC103)/AG103 -> 0 | AF103: 3 | AG103: =SUM(AI103:AK103)+AE103 -> 10.7 | AI103: =ROUND(AC103/(1-VLOOKUP(AF103,Group,2,FALSE)),2) -> 10.7 | AJ103: =IF(VLOOKUP(AF103,Group,5,FALSE)="YES",VLOOKUP(ROUND(ROUND(AI103,1)-AI103,2),Round,2,FALSE)+VLOOKUP(AF103,Group,6,FALSE),0) -> 0 | AK103: =IF(VLOOKUP(AF103,Group,7,FALSE)="",0,ROUND(AI103-0.04999,1)-AI103+AL103) -> 0 | AL103: =IF(VLOOKUP(AF103,Group,7,FALSE)="","",VLOOKUP(AF103,Group,7,FALSE)) ->  | AN103: X
AN104: X
D105: Colors: | E105: Branco Brilho (Glossy) White (Matte) | AN105: X
B107: Field Tile | E107: 14" x 39" | G107: Field | P107: 15.07 SF/CTN | S107: =IF(Suggested="Yes",AA107,AG107) -> 10.2 | T107: SF | U107: =+Instructions!$B$21 -> G | W107: =+Instructions!$C$21 -> 0 | X107: =IF(Instructions!$C$21="Group",#REF!,IF(Instructions!$C$21="Carter",#REF!,ROUNDUP($AA107*(1-W107),2))) -> 10.2 | AA107: 10.2 | AB107: =+W107 -> 0 | AC107: =+X107 -> 10.2 | AD107: =(AG107-AC107)/AG107 -> 0 | AF107: 1 | AG107: =SUM(AI107:AK107)+AE107 -> 10.2 | AI107: =ROUND(AC107/(1-VLOOKUP(AF107,Group,2,FALSE)),2) -> 10.2 | AJ107: =IF(VLOOKUP(AF107,Group,5,FALSE)="YES",VLOOKUP(ROUND(ROUND(AI107,1)-AI107,2),Round,2,FALSE)+VLOOKUP(AF107,Group,6,FALSE),0) -> 0 | AK107: =IF(VLOOKUP(AF107,Group,7,FALSE)="",0,ROUND(AI107-0.04999,1)-AI107+AL107) -> 0 | AL107: =IF(VLOOKUP(AF107,Group,7,FALSE)="","",VLOOKUP(AF107,Group,7,FALSE)) ->  | AN107: X
AN108: X
B109: Trim | E109: 3" x 14" | G109: S43E9 | I109: Bullnose | S109: =IF(Suggested="Yes",AA109,AG109) -> 11.8 | T109: EA | U109: =+Instructions!$B$21 -> G | W109: =+Instructions!$C$21 -> 0 | X109: =IF(Instructions!$C$21="Group",#REF!,IF(Instructions!$C$21="Carter",#REF!,ROUNDUP($AA109*(1-W109),2))) -> 11.8 | AA109: 11.8 | AB109: =+W109 -> 0 | AC109: =+X109 -> 11.8 | AD109: =(AG109-AC109)/AG109 -> 0 | AF109: 2 | AG109: =SUM(AI109:AK109)+AE109 -> 11.8 | AI109: =ROUND(AC109/(1-VLOOKUP(AF109,Group,2,FALSE)),2) -> 11.8 | AJ109: =IF(VLOOKUP(AF109,Group,5,FALSE)="YES",VLOOKUP(ROUND(ROUND(AI109,1)-AI109,2),Round,2,FALSE)+VLOOKUP(AF109,Group,6,FALSE),0) -> 0 | AK109: =IF(VLOOKUP(AF109,Group,7,FALSE)="",0,ROUND(AI109-0.04999,1)-AI109+AL109) -> 0 | AL109: =IF(VLOOKUP(AF109,Group,7,FALSE)="","",VLOOKUP(AF109,Group,7,FALSE)) ->  | AN109: X
AN110: X
A111: x | C111: continued on next page | AN111: X
C112: AMPLIFY - continued | R112: Item # Lookup: | S112: FTAM | AN112: X
AN113: X
D114: Dimensional Patterns: | AN114: X
AN115: X
B116: Decos | E116: 14" x 39" | G116: Field | I116: Dune - White (Matte) | P116: 11.30 SF/CTN | S116: =IF(Suggested="Yes",AA116,AG116) -> 11.9 | T116: SF | U116: =+Instructions!$B$21 -> G | W116: =+Instructions!$C$21 -> 0 | X116: =IF(Instructions!$C$21="Group",#REF!,IF(Instructions!$C$21="Carter",#REF!,ROUNDUP($AA116*(1-W116),2))) -> 11.9 | AA116: 11.9 | AB116: =+W116 -> 0 | AC116: 11.9 | AD116: =(AG116-AC116)/AG116 -> 0 | AF116: 3 | AG116: =SUM(AI116:AK116)+AE116 -> 11.9 | AI116: =ROUND(AC116/(1-VLOOKUP(AF116,Group,2,FALSE)),2) -> 11.9 | AJ116: =IF(VLOOKUP(AF116,Group,5,FALSE)="YES",VLOOKUP(ROUND(ROUND(AI116,1)-AI116,2),Round,2,FALSE)+VLOOKUP(AF116,Group,6,FALSE),0) -> 0 | AK116: =IF(VLOOKUP(AF116,Group,7,FALSE)="",0,ROUND(AI116-0.04999,1)-AI116+AL116) -> 0 | AL116: =IF(VLOOKUP(AF116,Group,7,FALSE)="","",VLOOKUP(AF116,Group,7,FALSE)) ->  | AN116: X
B117: Decos | E117: 14" x 39" | G117: Field | I117: Rise - White (Matte) | P117: 11.30 SF/CTN | S117: =IF(Suggested="Yes",AA117,AG117) -> 11.9 | T117: SF | U117: =+Instructions!$B$21 -> G | W117: =+Instructions!$C$21 -> 0 | X117: =IF(Instructions!$C$21="Group",#REF!,IF(Instructions!$C$21="Carter",#REF!,ROUNDUP($AA117*(1-W117),2))) -> 11.9 | AA117: 11.9 | AB117: 0 | AC117: 11.9 | AD117: =(AG117-AC117)/AG117 -> 0 | AF117: 3 | AG117: =SUM(AI117:AK117)+AE117 -> 11.9 | AI117: =ROUND(AC117/(1-VLOOKUP(AF117,Group,2,FALSE)),2) -> 11.9 | AJ117: =IF(VLOOKUP(AF117,Group,5,FALSE)="YES",VLOOKUP(ROUND(ROUND(AI117,1)-AI117,2),Round,2,FALSE)+VLOOKUP(AF117,Group,6,FALSE),0) -> 0 | AK117: =IF(VLOOKUP(AF117,Group,7,FALSE)="",0,ROUND(AI117-0.04999,1)-AI117+AL117) -> 0 | AL117: =IF(VLOOKUP(AF117,Group,7,FALSE)="","",VLOOKUP(AF117,Group,7,FALSE)) ->  | AN117: X
B118: Decos | E118: 14" x 39" | G118: Field | I118: Wind - White (Matte) | P118: 11.30 SF/CTN | S118: =IF(Suggested="Yes",AA118,AG118) -> 11.9 | T118: SF | U118: =+Instructions!$B$21 -> G | W118: =+Instructions!$C$21 -> 0 | X118: =IF(Instructions!$C$21="Group",#REF!,IF(Instructions!$C$21="Carter",#REF!,ROUNDUP($AA118*(1-W118),2))) -> 11.9 | AA118: 11.9 | AB118: 0 | AC118: 11.9 | AD118: =(AG118-AC118)/AG118 -> 0 | AF118: 3 | AG118: =SUM(AI118:AK118)+AE118 -> 11.9 | AI118: =ROUND(AC118/(1-VLOOKUP(AF118,Group,2,FALSE)),2) -> 11.9 | AJ118: =IF(VLOOKUP(AF118,Group,5,FALSE)="YES",VLOOKUP(ROUND(ROUND(AI118,1)-AI118,2),Round,2,FALSE)+VLOOKUP(AF118,Group,6,FALSE),0) -> 0 | AK118: =IF(VLOOKUP(AF118,Group,7,FALSE)="",0,ROUND(AI118-0.04999,1)-AI118+AL118) -> 0 | AL118: =IF(VLOOKUP(AF118,Group,7,FALSE)="","",VLOOKUP(AF118,Group,7,FALSE)) ->  | AN118: X
AN119: X
D120: Dimensional Pattern: | AN120: X
AN121: X
B122: Decos | E122: 9" x 18" | G122: Field (Pressed) | I122: Diamond - White (Glossy) | P122: 11.94 SF/CTN | S122: =IF(Suggested="Yes",AA122,AG122) -> 9.5 | T122: SF | U122: =+Instructions!$B$21 -> G | W122: =+Instructions!$C$21 -> 0 | X122: =IF(Instructions!$C$21="Group",#REF!,IF(Instructions!$C$21="Carter",#REF!,ROUNDUP($AA122*(1-W122),2))) -> 9.5 | AA122: 9.5 | AB122: =+W122 -> 0 | AC122: =+X122 -> 9.5 | AD122: =(AG122-AC122)/AG122 -> 0 | AF122: 3 | AG122: =SUM(AI122:AK122)+AE122 -> 9.5 | AI122: =ROUND(AC122/(1-VLOOKUP(AF122,Group,2,FALSE)),2) -> 9.5 | AJ122: =IF(VLOOKUP(AF122,Group,5,FALSE)="YES",VLOOKUP(ROUND(ROUND(AI122,1)-AI122,2),Round,2,FALSE)+VLOOKUP(AF122,Group,6,FALSE),0) -> 0 | AK122: =IF(VLOOKUP(AF122,Group,7,FALSE)="",0,ROUND(AI122-0.04999,1)-AI122+AL122) -> 0 | AL122: =IF(VLOOKUP(AF122,Group,7,FALSE)="","",VLOOKUP(AF122,Group,7,FALSE)) ->  | AN122: X
C124: AURA - Glazed Porcelain Floor & Wall (Rectified) | R124: Item # Lookup: | S124: FTAUR | AN124: X
AN125: X
D126: Colors: | E126: AUR10 Canvas White | H126: AUR30 Ash Warm Gray | L126: AUR50 Antracita Charcoal | AN126: X
E127: AUR20 Light Gray | H127: AUR40 Earth Beige | AN127: X
AN128: X
B129: Field Tile | E129: 12" x 24" | G129: Field | I129: Matte | P129: 11.63 SF/CTN | Q129: Stock | R129: a | S129: =IF(Suggested="Yes",AA129,AG129) -> 7.95 | T129: SF | U129: =+Instructions!$B$21 -> G | W129: =+Instructions!$C$21 -> 0 | X129: =IF(Instructions!$C$21="Group",#REF!,IF(Instructions!$C$21="Carter",#REF!,ROUNDUP($AA129*(1-W129),2))) -> 7.95 | AA129: 7.95 | AB129: =+W129 -> 0 | AC129: 7.95 | AD129: =(AG129-AC129)/AG129 -> 0 | AF129: 1 | AG129: =SUM(AI129:AK129)+AE129 -> 7.95 | AI129: =ROUND(AC129/(1-VLOOKUP(AF129,Group,2,FALSE)),2) -> 7.95 | AJ129: =IF(VLOOKUP(AF129,Group,5,FALSE)="YES",VLOOKUP(ROUND(ROUND(AI129,1)-AI129,2),Round,2,FALSE)+VLOOKUP(AF129,Group,6,FALSE),0) -> 0 | AK129: =IF(VLOOKUP(AF129,Group,7,FALSE)="",0,ROUND(AI129-0.04999,1)-AI129+AL129) -> 0 | AL129: =IF(VLOOKUP(AF129,Group,7,FALSE)="","",VLOOKUP(AF129,Group,7,FALSE)) ->  | AN129: X
B130: Field Tile | E130: 24" x 24" | G130: Field | I130: Matte | P130: 15.50 SF/CTN | S130: =IF(Suggested="Yes",AA130,AG130) -> 8.15 | T130: SF | U130: =+Instructions!$B$21 -> G | W130: =+Instructions!$C$21 -> 0 | X130: =IF(Instructions!$C$21="Group",#REF!,IF(Instructions!$C$21="Carter",#REF!,ROUNDUP($AA130*(1-W130),2))) -> 8.15 | AA130: 8.15 | AB130: 0 | AC130: 8.15 | AD130: =(AG130-AC130)/AG130 -> 0 | AF130: 1 | AG130: =SUM(AI130:AK130)+AE130 -> 8.15 | AI130: =ROUND(AC130/(1-VLOOKUP(AF130,Group,2,FALSE)),2) -> 8.15 | AJ130: =IF(VLOOKUP(AF130,Group,5,FALSE)="YES",VLOOKUP(ROUND(ROUND(AI130,1)-AI130,2),Round,2,FALSE)+VLOOKUP(AF130,Group,6,FALSE),0) -> 0 | AK130: =IF(VLOOKUP(AF130,Group,7,FALSE)="",0,ROUND(AI130-0.04999,1)-AI130+AL130) -> 0 | AL130: =IF(VLOOKUP(AF130,Group,7,FALSE)="","",VLOOKUP(AF130,Group,7,FALSE)) ->  | AN130: X
B131: Field Tile | E131: 24" x 48" | G131: Field | I131: Matte | P131: 15.50 SF/CTN | S131: =IF(Suggested="Yes",AA131,AG131) -> 9.4 | T131: SF | U131: =+Instructions!$B$21 -> G | W131: =+Instructions!$C$21 -> 0 | X131: =IF(Instructions!$C$21="Group",#REF!,IF(Instructions!$C$21="Carter",#REF!,ROUNDUP($AA131*(1-W131),2))) -> 9.4 | AA131: 9.4 | AB131: 0 | AC131: 9.4 | AD131: =(AG131-AC131)/AG131 -> 0 | AF131: 1 | AG131: =SUM(AI131:AK131)+AE131 -> 9.4 | AI131: =ROUND(AC131/(1-VLOOKUP(AF131,Group,2,FALSE)),2) -> 9.4 | AJ131: =IF(VLOOKUP(AF131,Group,5,FALSE)="YES",VLOOKUP(ROUND(ROUND(AI131,1)-AI131,2),Round,2,FALSE)+VLOOKUP(AF131,Group,6,FALSE),0) -> 0 | AK131: =IF(VLOOKUP(AF131,Group,7,FALSE)="",0,ROUND(AI131-0.04999,1)-AI131+AL131) -> 0 | AL131: =IF(VLOOKUP(AF131,Group,7,FALSE)="","",VLOOKUP(AF131,Group,7,FALSE)) ->  | AN131: X
AN132: X
B133: Decos | E133: 12" x 12" | G133: M128 | I133: Matte | J133: Mosaic 1-1/2" x 1-1/2" Mesh-Mounted | P133: 5 EA/CTN | S133: =IF(Suggested="Yes",AA133,AG133) -> 34.55 | T133: EA | U133: =+Instructions!$B$21 -> G | W133: =+Instructions!$C$21 -> 0 | X133: =IF(Instructions!$C$21="Group",#REF!,IF(Instructions!$C$21="Carter",#REF!,ROUNDUP($AA133*(1-W133),2))) -> 34.55 | AA133: 34.55 | AB133: =+W133 -> 0 | AC133: =+X133 -> 34.55 | AD133: =(AG133-AC133)/AG133 -> 0 | AF133: 3 | AG133: =SUM(AI133:AK133)+AE133 -> 34.55 | AI133: =ROUND(AC133/(1-VLOOKUP(AF133,Group,2,FALSE)),2) -> 34.55 | AJ133: =IF(VLOOKUP(AF133,Group,5,FALSE)="YES",VLOOKUP(ROUND(ROUND(AI133,1)-AI133,2),Round,2,FALSE)+VLOOKUP(AF133,Group,6,FALSE),0) -> 0 | AK133: =IF(VLOOKUP(AF133,Group,7,FALSE)="",0,ROUND(AI133-0.04999,1)-AI133+AL133) -> 0 | AL133: =IF(VLOOKUP(AF133,Group,7,FALSE)="","",VLOOKUP(AF133,Group,7,FALSE)) ->  | AN133: X
AN134: X
B135: Trim | E135: 3" x 24" | G135: P43N9 | I135: Matte | J135: Bullnose | S135: =IF(Suggested="Yes",AA135,AG135) -> 13.75 | T135: EA | U135: =+Instructions!$B$21 -> G | W135: =+Instructions!$C$21 -> 0 | X135: =IF(Instructions!$C$21="Group",#REF!,IF(Instructions!$C$21="Carter",#REF!,ROUNDUP($AA135*(1-W135),2))) -> 13.75 | AA135: 13.75 | AB135: =+W135 -> 0 | AC135: =+X135 -> 13.75 | AD135: =(AG135-AC135)/AG135 -> 0 | AF135: 2 | AG135: =SUM(AI135:AK135)+AE135 -> 13.75 | AI135: =ROUND(AC135/(1-VLOOKUP(AF135,Group,2,FALSE)),2) -> 13.75 | AJ135: =IF(VLOOKUP(AF135,Group,5,FALSE)="YES",VLOOKUP(ROUND(ROUND(AI135,1)-AI135,2),Round,2,FALSE)+VLOOKUP(AF135,Group,6,FALSE),0) -> 0 | AK135: =IF(VLOOKUP(AF135,Group,7,FALSE)="",0,ROUND(AI135-0.04999,1)-AI135+AL135) -> 0 | AL135: =IF(VLOOKUP(AF135,Group,7,FALSE)="","",VLOOKUP(AF135,Group,7,FALSE)) ->  | AN135: X
AN136: X
D137: Note: | E137: a) Not stocked in color AUR50 Antracita Charcoal. | AN137: X
C139: AVENTIS - Color Body Glazed Porcelain Floor & Wall | R139: Item # Lookup: | S139: FTAT
AN140: X
D141: Colors: | E141: AT0R Eclipse | G141: AT2R Velvet | J141: AT4R Nut | AN141: X
E142: AT1R Ask | G142: AT3R Titanium | J142: AT5R Cotton
B144: Field Tile | E144: 12" x 24" | G144: Field | P144: 15.61 SF/CTN | Q144: Stock | S144: =IF(Suggested="Yes",AA144,AG144) -> 7.15 | T144: SF | U144: =+Instructions!$B$21 -> G | W144: =+Instructions!$C$21 -> 0 | X144: =IF(Instructions!$C$21="Group",#REF!,IF(Instructions!$C$21="Carter",#REF!,ROUNDUP($AA144*(1-W144),2))) -> 7.15 | AA144: 7.15 | AB144: =+W144 -> 0 | AC144: =+X144 -> 7.15 | AD144: =(AG144-AC144)/AG144 -> 0 | AF144: 1 | AG144: =SUM(AI144:AK144)+AE144 -> 7.15 | AI144: =ROUND(AC144/(1-VLOOKUP(AF144,Group,2,FALSE)),2) -> 7.15 | AJ144: =IF(VLOOKUP(AF144,Group,5,FALSE)="YES",VLOOKUP(ROUND(ROUND(AI144,1)-AI144,2),Round,2,FALSE)+VLOOKUP(AF144,Group,6,FALSE),0) -> 0 | AK144: =IF(VLOOKUP(AF144,Group,7,FALSE)="",0,ROUND(AI144-0.04999,1)-AI144+AL144) -> 0 | AL144: =IF(VLOOKUP(AF144,Group,7,FALSE)="","",VLOOKUP(AF144,Group,7,FALSE)) ->  | AN144: X
B145: Field Tile | E145: 24" x 24" | G145: Field | K145: Discontinued 8/21/24 | P145: 15.50 SF/CTN | S145: =IF(Suggested="Yes",AA145,AG145) -> 8.15 | T145: SF | U145: =+Instructions!$B$21 -> G | W145: =+Instructions!$C$21 -> 0 | X145: =IF(Instructions!$C$21="Group",#REF!,IF(Instructions!$C$21="Carter",#REF!,ROUNDUP($AA145*(1-W145),2))) -> 8.15 | AA145: 8.15 | AB145: =+W145 -> 0 | AC145: =+X145 -> 8.15 | AD145: =(AG145-AC145)/AG145 -> 0 | AF145: 1 | AG145: =SUM(AI145:AK145)+AE145 -> 8.15 | AI145: =ROUND(AC145/(1-VLOOKUP(AF145,Group,2,FALSE)),2) -> 8.15 | AJ145: =IF(VLOOKUP(AF145,Group,5,FALSE)="YES",VLOOKUP(ROUND(ROUND(AI145,1)-AI145,2),Round,2,FALSE)+VLOOKUP(AF145,Group,6,FALSE),0) -> 0 | AK145: =IF(VLOOKUP(AF145,Group,7,FALSE)="",0,ROUND(AI145-0.04999,1)-AI145+AL145) -> 0 | AL145: =IF(VLOOKUP(AF145,Group,7,FALSE)="","",VLOOKUP(AF145,Group,7,FALSE)) ->  | AN145: X
B147: Decos | E147: 12" x 12" | G147: M12 | I147: Mosaic 2-1/2" x 2-1/2" Mesh-Mounted | P147: 5 EA/CTN | S147: =IF(Suggested="Yes",AA147,AG147) -> 31.55 | T147: EA | U147: =+Instructions!$B$21 -> G | W147: =+Instructions!$C$21 -> 0 | X147: =IF(Instructions!$C$21="Group",#REF!,IF(Instructions!$C$21="Carter",#REF!,ROUNDUP($AA147*(1-W147),2))) -> 31.55 | AA147: 31.55 | AB147: =+W147 -> 0 | AC147: =+X147 -> 31.55 | AD147: =(AG147-AC147)/AG147 -> 0 | AF147: 3 | AG147: =SUM(AI147:AK147)+AE147 -> 31.55 | AI147: =ROUND(AC147/(1-VLOOKUP(AF147,Group,2,FALSE)),2) -> 31.55 | AJ147: =IF(VLOOKUP(AF147,Group,5,FALSE)="YES",VLOOKUP(ROUND(ROUND(AI147,1)-AI147,2),Round,2,FALSE)+VLOOKUP(AF147,Group,6,FALSE),0) -> 0 | AK147: =IF(VLOOKUP(AF147,Group,7,FALSE)="",0,ROUND(AI147-0.04999,1)-AI147+AL147) -> 0 | AL147: =IF(VLOOKUP(AF147,Group,7,FALSE)="","",VLOOKUP(AF147,Group,7,FALSE)) ->  | AN147: X
AN148: X
D149: Colors: | E149: AT02 Eclipse | G149: AT22 Velvet | J149: AT42 Nut | AN149: X
E150: AT12 Ask | G150: AT32 Titanium | J150: AT52 Cotton
B152: Trim | E152: 3" x 12" | G152: P43C9 | I152: Bullnose | S152: =IF(Suggested="Yes",AA152,AG152) -> 10.6 | T152: EA | U152: =+Instructions!$B$21 -> G | W152: =+Instructions!$C$21 -> 0 | X152: =IF(Instructions!$C$21="Group",#REF!,IF(Instructions!$C$21="Carter",#REF!,ROUNDUP($AA152*(1-W152),2))) -> 10.6 | AA152: 10.6 | AB152: =+W152 -> 0 | AC152: =+X152 -> 10.6 | AD152: =(AG152-AC152)/AG152 -> 0 | AF152: 2 | AG152: =SUM(AI152:AK152)+AE152 -> 10.6 | AI152: =ROUND(AC152/(1-VLOOKUP(AF152,Group,2,FALSE)),2) -> 10.6 | AJ152: =IF(VLOOKUP(AF152,Group,5,FALSE)="YES",VLOOKUP(ROUND(ROUND(AI152,1)-AI152,2),Round,2,FALSE)+VLOOKUP(AF152,Group,6,FALSE),0) -> 0 | AK152: =IF(VLOOKUP(AF152,Group,7,FALSE)="",0,ROUND(AI152-0.04999,1)-AI152+AL152) -> 0 | AL152: =IF(VLOOKUP(AF152,Group,7,FALSE)="","",VLOOKUP(AF152,Group,7,FALSE)) ->  | AN152: X
AN153: X
C154: BELLANOVA - Color Body Glazed Porcelain | R154: Item # Lookup: | S154: FTBE
AN155: X
D156: Colors: | E156: BNV10 Foam | G156: BNV30 Honey | J156: BNV50 Espresso | AN156: X
E157: BNV20 Crema | G157: BNV40 Macchiato | AN157: X
AN158: X
B159: Field Tile | E159: 8" x 48" | G159: Field | I159: Rectified | P159: 15.69 SF/CTN | S159: =IF(Suggested="Yes",AA159,AG159) -> 5.95 | T159: SF | U159: =+Instructions!$B$21 -> G | W159: =+Instructions!$C$21 -> 0 | X159: =IF(Instructions!$C$21="Group",#REF!,IF(Instructions!$C$21="Carter",#REF!,ROUNDUP($AA159*(1-W159),2))) -> 5.95 | Z159: new | AA159: 5.95 | AB159: =+W159 -> 0 | AC159: =+X159 -> 5.95 | AD159: =(AG159-AC159)/AG159 -> 0 | AF159: 1 | AG159: =SUM(AI159:AK159)+AE159 -> 5.95 | AI159: =ROUND(AC159/(1-VLOOKUP(AF159,Group,2,FALSE)),2) -> 5.95 | AJ159: =IF(VLOOKUP(AF159,Group,5,FALSE)="YES",VLOOKUP(ROUND(ROUND(AI159,1)-AI159,2),Round,2,FALSE)+VLOOKUP(AF159,Group,6,FALSE),0) -> 0 | AK159: =IF(VLOOKUP(AF159,Group,7,FALSE)="",0,ROUND(AI159-0.04999,1)-AI159+AL159) -> 0 | AL159: =IF(VLOOKUP(AF159,Group,7,FALSE)="","",VLOOKUP(AF159,Group,7,FALSE)) ->  | AN159: X
AN160: X
B161: Decos | E161: 8" x 48" | G161: M1x48LIN | I161: Mosaic 1" x 48" Linear Mesh-Mounted | P161: 5 EA/CTN | S161: =IF(Suggested="Yes",AA161,AG161) -> 88.45 | T161: EA | U161: =+Instructions!$B$21 -> G | W161: =+Instructions!$C$21 -> 0 | X161: =IF(Instructions!$C$21="Group",#REF!,IF(Instructions!$C$21="Carter",#REF!,ROUNDUP($AA161*(1-W161),2))) -> 88.45 | Z161: new | AA161: 88.45 | AB161: =+W161 -> 0 | AC161: =+X161 -> 88.45 | AD161: =(AG161-AC161)/AG161 -> 0 | AF161: 3 | AG161: =SUM(AI161:AK161)+AE161 -> 88.45 | AI161: =ROUND(AC161/(1-VLOOKUP(AF161,Group,2,FALSE)),2) -> 88.45 | AJ161: =IF(VLOOKUP(AF161,Group,5,FALSE)="YES",VLOOKUP(ROUND(ROUND(AI161,1)-AI161,2),Round,2,FALSE)+VLOOKUP(AF161,Group,6,FALSE),0) -> 0 | AK161: =IF(VLOOKUP(AF161,Group,7,FALSE)="",0,ROUND(AI161-0.04999,1)-AI161+AL161) -> 0 | AL161: =IF(VLOOKUP(AF161,Group,7,FALSE)="","",VLOOKUP(AF161,Group,7,FALSE)) ->  | AN161: X
AN162: X
C163: BERKSHIREHDP - Color Body Glazed Porcelain | R163: Item # Lookup: | S163: FT255
AN164: X
D165: Colors: | E165: 25525 Oak 25535 Hickory 25555 Olive 25585 Walnut 25595 Maple | AN165: X
AN166: X
B167: Field Tile | E167: 6" x 24" | G167: Field | P167: 15.00 SF/CTN | S167: =IF(Suggested="Yes",AA167,AG167) -> 6.75 | T167: SF | U167: =+Instructions!$B$21 -> G | W167: =+Instructions!$C$21 -> 0 | X167: =IF(Instructions!$C$21="Group",#REF!,IF(Instructions!$C$21="Carter",#REF!,ROUNDUP($AA167*(1-W167),2))) -> 6.75 | AA167: 6.75 | AB167: =+W167 -> 0 | AC167: =+X167 -> 6.75 | AD167: =(AG167-AC167)/AG167 -> 0 | AF167: 1 | AG167: =SUM(AI167:AK167)+AE167 -> 6.75 | AI167: =ROUND(AC167/(1-VLOOKUP(AF167,Group,2,FALSE)),2) -> 6.75 | AJ167: =IF(VLOOKUP(AF167,Group,5,FALSE)="YES",VLOOKUP(ROUND(ROUND(AI167,1)-AI167,2),Round,2,FALSE)+VLOOKUP(AF167,Group,6,FALSE),0) -> 0 | AK167: =IF(VLOOKUP(AF167,Group,7,FALSE)="",0,ROUND(AI167-0.04999,1)-AI167+AL167) -> 0 | AL167: =IF(VLOOKUP(AF167,Group,7,FALSE)="","",VLOOKUP(AF167,Group,7,FALSE)) ->  | AN167: X
B168: Field Tile | E168: 8" x 36" | G168: Field | P168: 14.00 SF/CTN | S168: =IF(Suggested="Yes",AA168,AG168) -> 6.75 | T168: SF | U168: =+Instructions!$B$21 -> G | W168: =+Instructions!$C$21 -> 0 | X168: =IF(Instructions!$C$21="Group",#REF!,IF(Instructions!$C$21="Carter",#REF!,ROUNDUP($AA168*(1-W168),2))) -> 6.75 | AA168: 6.75 | AB168: =+W168 -> 0 | AC168: =+X168 -> 6.75 | AD168: =(AG168-AC168)/AG168 -> 0 | AF168: 1 | AG168: =SUM(AI168:AK168)+AE168 -> 6.75 | AI168: =ROUND(AC168/(1-VLOOKUP(AF168,Group,2,FALSE)),2) -> 6.75 | AJ168: =IF(VLOOKUP(AF168,Group,5,FALSE)="YES",VLOOKUP(ROUND(ROUND(AI168,1)-AI168,2),Round,2,FALSE)+VLOOKUP(AF168,Group,6,FALSE),0) -> 0 | AK168: =IF(VLOOKUP(AF168,Group,7,FALSE)="",0,ROUND(AI168-0.04999,1)-AI168+AL168) -> 0 | AL168: =IF(VLOOKUP(AF168,Group,7,FALSE)="","",VLOOKUP(AF168,Group,7,FALSE)) ->  | AN168: X
AN169: X
B170: Decos | E170: 12" x 12" | G170: M12REC | I170: Mosaic Parquet Mesh-Mounted | P170: 5 EA/CTN | S170: =IF(Suggested="Yes",AA170,AG170) -> 30.3 | T170: EA | U170: =+Instructions!$B$21 -> G | W170: =+Instructions!$C$21 -> 0 | X170: =IF(Instructions!$C$21="Group",#REF!,IF(Instructions!$C$21="Carter",#REF!,ROUNDUP($AA170*(1-W170),2))) -> 30.3 | AA170: 30.3 | AB170: =+W170 -> 0 | AC170: =+X170 -> 30.3 | AD170: =(AG170-AC170)/AG170 -> 0 | AF170: 3 | AG170: =SUM(AI170:AK170)+AE170 -> 30.3 | AI170: =ROUND(AC170/(1-VLOOKUP(AF170,Group,2,FALSE)),2) -> 30.3 | AJ170: =IF(VLOOKUP(AF170,Group,5,FALSE)="YES",VLOOKUP(ROUND(ROUND(AI170,1)-AI170,2),Round,2,FALSE)+VLOOKUP(AF170,Group,6,FALSE),0) -> 0 | AK170: =IF(VLOOKUP(AF170,Group,7,FALSE)="",0,ROUND(AI170-0.04999,1)-AI170+AL170) -> 0 | AL170: =IF(VLOOKUP(AF170,Group,7,FALSE)="","",VLOOKUP(AF170,Group,7,FALSE)) ->  | AN170: X
B172: Trim | E172: 3" x 24" | G172: P43N9 | I172: Bullnose | S172: =IF(Suggested="Yes",AA172,AG172) -> 17.6 | T172: EA | U172: =+Instructions!$B$21 -> G | W172: =+Instructions!$C$21 -> 0 | X172: =IF(Instructions!$C$21="Group",#REF!,IF(Instructions!$C$21="Carter",#REF!,ROUNDUP($AA172*(1-W172),2))) -> 17.6 | AA172: 17.6 | AB172: =+W172 -> 0 | AC172: =+X172 -> 17.6 | AD172: =(AG172-AC172)/AG172 -> 0 | AF172: 2 | AG172: =SUM(AI172:AK172)+AE172 -> 17.6 | AI172: =ROUND(AC172/(1-VLOOKUP(AF172,Group,2,FALSE)),2) -> 17.6 | AJ172: =IF(VLOOKUP(AF172,Group,5,FALSE)="YES",VLOOKUP(ROUND(ROUND(AI172,1)-AI172,2),Round,2,FALSE)+VLOOKUP(AF172,Group,6,FALSE),0) -> 0 | AK172: =IF(VLOOKUP(AF172,Group,7,FALSE)="",0,ROUND(AI172-0.04999,1)-AI172+AL172) -> 0 | AL172: =IF(VLOOKUP(AF172,Group,7,FALSE)="","",VLOOKUP(AF172,Group,7,FALSE)) ->  | AN172: X
AN173: X
C174: BLUERUNHDP - Color Body Porcelain & 2CM PAVERS | R174: Item # Lookup: | S174: FTBL
AN175: X
D176: Colors: | E176: BLR10 Antique White BLR20 Historic Greige BLR30 Atlas Gray (Color BLR40 Fossil Black - Discontinued 12/6/24) | AN176: X
AN177: X
B178: Field Tile | E178: 12" x 24" | G178: Field | I178: Rectified | P178: 15.62 SF/CTN | S178: =IF(Suggested="Yes",AA178,AG178) -> 6.3 | T178: SF | U178: =+Instructions!$B$21 -> G | W178: =+Instructions!$C$21 -> 0 | X178: =IF(Instructions!$C$21="Group",#REF!,IF(Instructions!$C$21="Carter",#REF!,ROUNDUP($AA178*(1-W178),2))) -> 6.3 | AA178: 6.3 | AB178: =+W178 -> 0 | AC178: =+X178 -> 6.3 | AD178: =(AG178-AC178)/AG178 -> 0 | AF178: 1 | AG178: =SUM(AI178:AK178)+AE178 -> 6.3 | AI178: =ROUND(AC178/(1-VLOOKUP(AF178,Group,2,FALSE)),2) -> 6.3 | AJ178: =IF(VLOOKUP(AF178,Group,5,FALSE)="YES",VLOOKUP(ROUND(ROUND(AI178,1)-AI178,2),Round,2,FALSE)+VLOOKUP(AF178,Group,6,FALSE),0) -> 0 | AK178: =IF(VLOOKUP(AF178,Group,7,FALSE)="",0,ROUND(AI178-0.04999,1)-AI178+AL178) -> 0 | AL178: =IF(VLOOKUP(AF178,Group,7,FALSE)="","",VLOOKUP(AF178,Group,7,FALSE)) ->  | AN178: X
B179: Field Tile | E179: 24" x 24" | G179: Field | I179: Rectified | P179: 15.58 SF/CTN | S179: =IF(Suggested="Yes",AA179,AG179) -> 7.1 | T179: SF | U179: =+Instructions!$B$21 -> G | W179: =+Instructions!$C$21 -> 0 | X179: =IF(Instructions!$C$21="Group",#REF!,IF(Instructions!$C$21="Carter",#REF!,ROUNDUP($AA179*(1-W179),2))) -> 7.1 | AA179: 7.1 | AB179: =+W179 -> 0 | AC179: =+X179 -> 7.1 | AD179: =(AG179-AC179)/AG179 -> 0 | AF179: 1 | AG179: =SUM(AI179:AK179)+AE179 -> 7.1 | AI179: =ROUND(AC179/(1-VLOOKUP(AF179,Group,2,FALSE)),2) -> 7.1 | AJ179: =IF(VLOOKUP(AF179,Group,5,FALSE)="YES",VLOOKUP(ROUND(ROUND(AI179,1)-AI179,2),Round,2,FALSE)+VLOOKUP(AF179,Group,6,FALSE),0) -> 0 | AK179: =IF(VLOOKUP(AF179,Group,7,FALSE)="",0,ROUND(AI179-0.04999,1)-AI179+AL179) -> 0 | AL179: =IF(VLOOKUP(AF179,Group,7,FALSE)="","",VLOOKUP(AF179,Group,7,FALSE)) ->  | AN179: X
AN180: X
B181: Decos | E181: 24" x 24" | G181: Field - Deco | I181: BLR10D Antique White | L181: Discontinued 12/6/24 | P181: 15.58 SF/CTN | R181: a | S181: =IF(Suggested="Yes",AA181,AG181) -> 7.35 | T181: SF | U181: =+Instructions!$B$21 -> G | W181: =+Instructions!$C$21 -> 0 | X181: =IF(Instructions!$C$21="Group",#REF!,IF(Instructions!$C$21="Carter",#REF!,ROUNDUP($AA181*(1-W181),2))) -> 7.35 | AA181: 7.35 | AB181: =+W181 -> 0 | AC181: =+X181 -> 7.35 | AD181: =(AG181-AC181)/AG181 -> 0 | AF181: 3 | AG181: =SUM(AI181:AK181)+AE181 -> 7.35 | AI181: =ROUND(AC181/(1-VLOOKUP(AF181,Group,2,FALSE)),2) -> 7.35 | AJ181: =IF(VLOOKUP(AF181,Group,5,FALSE)="YES",VLOOKUP(ROUND(ROUND(AI181,1)-AI181,2),Round,2,FALSE)+VLOOKUP(AF181,Group,6,FALSE),0) -> 0 | AK181: =IF(VLOOKUP(AF181,Group,7,FALSE)="",0,ROUND(AI181-0.04999,1)-AI181+AL181) -> 0 | AL181: =IF(VLOOKUP(AF181,Group,7,FALSE)="","",VLOOKUP(AF181,Group,7,FALSE)) ->  | AN181: X
B182: Decos | E182: 24" x 24" | G182: Field - Deco | I182: BLR20D Historic Greige | L182: Discontinued 12/6/24 | P182: 15.58 SF/CTN | R182: a | S182: 7.35 | T182: SF | U182: =+Instructions!$B$21 -> G | W182: =+Instructions!$C$21 -> 0 | X182: =IF(Instructions!$C$21="Group",#REF!,IF(Instructions!$C$21="Carter",#REF!,ROUNDUP($AA182*(1-W182),2))) -> 7.35 | AA182: 7.35 | AB182: 0 | AC182: 7.35 | AD182: 0 | AF182: 3 | AG182: 7.35 | AI182: 7.35 | AJ182: 0 | AK182: 0 | AN182: X
B183: Decos | E183: 24" x 24" | G183: Field - Deco | I183: BLR30D Atlas Gray | L183: Discontinued 12/6/24 | P183: 15.58 SF/CTN | R183: a | S183: 7.35 | T183: SF | U183: =+Instructions!$B$21 -> G | W183: =+Instructions!$C$21 -> 0 | X183: =IF(Instructions!$C$21="Group",#REF!,IF(Instructions!$C$21="Carter",#REF!,ROUNDUP($AA183*(1-W183),2))) -> 7.35 | AA183: 7.35 | AB183: 0 | AC183: 7.35 | AD183: 0 | AF183: 3 | AG183: 7.35 | AI183: 7.35 | AJ183: 0 | AK183: 0 | AN183: X
B184: Decos | E184: 24" x 24" | G184: Field - Deco | I184: BLR40D Fossil Black | L184: Discontinued 12/6/24 | P184: 15.58 SF/CTN | R184: a | S184: =IF(Suggested="Yes",AA184,AG184) -> 7.35 | T184: SF | U184: =+Instructions!$B$21 -> G | W184: =+Instructions!$C$21 -> 0 | X184: =IF(Instructions!$C$21="Group",#REF!,IF(Instructions!$C$21="Carter",#REF!,ROUNDUP($AA184*(1-W184),2))) -> 7.35 | AA184: 7.35 | AB184: =+W184 -> 0 | AC184: =+X184 -> 7.35 | AD184: =(AG184-AC184)/AG184 -> 0 | AF184: 3 | AG184: =SUM(AI184:AK184)+AE184 -> 7.35 | AI184: =ROUND(AC184/(1-VLOOKUP(AF184,Group,2,FALSE)),2) -> 7.35 | AJ184: =IF(VLOOKUP(AF184,Group,5,FALSE)="YES",VLOOKUP(ROUND(ROUND(AI184,1)-AI184,2),Round,2,FALSE)+VLOOKUP(AF184,Group,6,FALSE),0) -> 0 | AK184: =IF(VLOOKUP(AF184,Group,7,FALSE)="",0,ROUND(AI184-0.04999,1)-AI184+AL184) -> 0 | AL184: =IF(VLOOKUP(AF184,Group,7,FALSE)="","",VLOOKUP(AF184,Group,7,FALSE)) ->  | AN184: X
AN185: X
B186: Decos | E186: 12" x 12" | G186: M12MIX | I186: Mosaic Mix - BLR21 Greige White | N186: Disc. 12/6/24 | P186: 5 EA/CTN | R186: b | S186: =IF(Suggested="Yes",AA186,AG186) -> 49.9 | T186: EA | U186: =+Instructions!$B$21 -> G | W186: =+Instructions!$C$21 -> 0 | X186: =IF(Instructions!$C$21="Group",#REF!,IF(Instructions!$C$21="Carter",#REF!,ROUNDUP($AA186*(1-W186),2))) -> 49.9 | AA186: 49.9 | AB186: =+W186 -> 0 | AC186: =+X186 -> 49.9 | AD186: =(AG186-AC186)/AG186 -> 0 | AF186: 3 | AG186: =SUM(AI186:AK186)+AE186 -> 49.9 | AI186: =ROUND(AC186/(1-VLOOKUP(AF186,Group,2,FALSE)),2) -> 49.9 | AJ186: =IF(VLOOKUP(AF186,Group,5,FALSE)="YES",VLOOKUP(ROUND(ROUND(AI186,1)-AI186,2),Round,2,FALSE)+VLOOKUP(AF186,Group,6,FALSE),0) -> 0 | AK186: =IF(VLOOKUP(AF186,Group,7,FALSE)="",0,ROUND(AI186-0.04999,1)-AI186+AL186) -> 0 | AL186: =IF(VLOOKUP(AF186,Group,7,FALSE)="","",VLOOKUP(AF186,Group,7,FALSE)) ->  | AN186: X
B187: Decos | E187: 12" x 12" | G187: M12MIX | I187: Mosaic Mix - BLR31 Gray White | N187: Disc. 12/6/24 | P187: 5 EA/CTN | R187: b | S187: =IF(Suggested="Yes",AA187,AG187) -> 49.9 | T187: EA | U187: =+Instructions!$B$21 -> G | W187: =+Instructions!$C$21 -> 0 | X187: =IF(Instructions!$C$21="Group",#REF!,IF(Instructions!$C$21="Carter",#REF!,ROUNDUP($AA187*(1-W187),2))) -> 49.9 | AA187: 49.9 | AB187: =+W187 -> 0 | AC187: =+X187 -> 49.9 | AD187: =(AG187-AC187)/AG187 -> 0 | AF187: 3 | AG187: =SUM(AI187:AK187)+AE187 -> 49.9 | AI187: =ROUND(AC187/(1-VLOOKUP(AF187,Group,2,FALSE)),2) -> 49.9 | AJ187: =IF(VLOOKUP(AF187,Group,5,FALSE)="YES",VLOOKUP(ROUND(ROUND(AI187,1)-AI187,2),Round,2,FALSE)+VLOOKUP(AF187,Group,6,FALSE),0) -> 0 | AK187: =IF(VLOOKUP(AF187,Group,7,FALSE)="",0,ROUND(AI187-0.04999,1)-AI187+AL187) -> 0 | AL187: =IF(VLOOKUP(AF187,Group,7,FALSE)="","",VLOOKUP(AF187,Group,7,FALSE)) ->  | AN187: X
B188: Decos | E188: 12" x 12" | G188: M12MIX | I188: Mosaic Mix - BLR41 Black White | N188: Disc. 12/6/24 | P188: 5 EA/CTN | R188: b | S188: =IF(Suggested="Yes",AA188,AG188) -> 49.9 | T188: EA | U188: =+Instructions!$B$21 -> G | W188: =+Instructions!$C$21 -> 0 | X188: =IF(Instructions!$C$21="Group",#REF!,IF(Instructions!$C$21="Carter",#REF!,ROUNDUP($AA188*(1-W188),2))) -> 49.9 | AA188: 49.9 | AB188: =+W188 -> 0 | AC188: =+X188 -> 49.9 | AD188: =(AG188-AC188)/AG188 -> 0 | AF188: 3 | AG188: =SUM(AI188:AK188)+AE188 -> 49.9 | AI188: =ROUND(AC188/(1-VLOOKUP(AF188,Group,2,FALSE)),2) -> 49.9 | AJ188: =IF(VLOOKUP(AF188,Group,5,FALSE)="YES",VLOOKUP(ROUND(ROUND(AI188,1)-AI188,2),Round,2,FALSE)+VLOOKUP(AF188,Group,6,FALSE),0) -> 0 | AK188: =IF(VLOOKUP(AF188,Group,7,FALSE)="",0,ROUND(AI188-0.04999,1)-AI188+AL188) -> 0 | AL188: =IF(VLOOKUP(AF188,Group,7,FALSE)="","",VLOOKUP(AF188,Group,7,FALSE)) ->  | AN188: X
AN189: X
B190: Decos | E190: 12-3/8" x 12-3/8" | G190: M1.5x3OBW | I190: Mosaic Offset Basketweave | N190: Disc. 12/6/24 | P190: 5 EA/CTN | R190: b | S190: 34.5 | T190: EA | U190: =+Instructions!$B$21 -> G | W190: =+Instructions!$C$21 -> 0 | X190: =IF(Instructions!$C$21="Group",#REF!,IF(Instructions!$C$21="Carter",#REF!,ROUNDUP($AA190*(1-W190),2))) -> 34.5 | AA190: 34.5 | AB190: 0 | AC190: 34.5 | AD190: 0 | AF190: 3 | AG190: 34.5 | AI190: 34.5 | AJ190: 0 | AK190: 0 | AN190: X
AN191: X
B192: Trim | E192: 3" x 24" | G192: P43N9 | I192: Bullnose | N192: Disc. 12/6/24 | S192: 13.7 | T192: EA | U192: =+Instructions!$B$21 -> G | W192: =+Instructions!$C$21 -> 0 | X192: =IF(Instructions!$C$21="Group",#REF!,IF(Instructions!$C$21="Carter",#REF!,ROUNDUP($AA192*(1-W192),2))) -> 13.7 | AA192: 13.7 | AB192: 0 | AC192: 13.7 | AD192: 0 | AF192: 2 | AG192: 13.7 | AI192: 13.7 | AJ192: 0 | AK192: 0 | AN192: X
AN193: X
D194: Colors: | E194: BLR10U Antique White BLR20U Historic Greige BLR30U Atlas Gray (Color BLR40U Fossil Black - Discontinued 12/6/24) | AN194: X
AN195: X
B196: Field Tile | E196: 24" x 36" x 2cm | G196: Field | I196: Rectified | P196: 5.85 SF/CTN | S196: =IF(Suggested="Yes",AA196,AG196) -> 12.75 | T196: SF | U196: =+Instructions!$B$21 -> G | W196: =+Instructions!$C$21 -> 0 | X196: =IF(Instructions!$C$21="Group",#REF!,IF(Instructions!$C$21="Carter",#REF!,ROUNDUP($AA196*(1-W196),2))) -> 12.75 | AA196: 12.75 | AB196: =+W196 -> 0 | AC196: =+X196 -> 12.75 | AD196: =(AG196-AC196)/AG196 -> 0 | AF196: 1 | AG196: =SUM(AI196:AK196)+AE196 -> 12.75 | AI196: =ROUND(AC196/(1-VLOOKUP(AF196,Group,2,FALSE)),2) -> 12.75 | AJ196: =IF(VLOOKUP(AF196,Group,5,FALSE)="YES",VLOOKUP(ROUND(ROUND(AI196,1)-AI196,2),Round,2,FALSE)+VLOOKUP(AF196,Group,6,FALSE),0) -> 0 | AK196: =IF(VLOOKUP(AF196,Group,7,FALSE)="",0,ROUND(AI196-0.04999,1)-AI196+AL196) -> 0 | AL196: =IF(VLOOKUP(AF196,Group,7,FALSE)="","",VLOOKUP(AF196,Group,7,FALSE)) ->  | AN196: X
AN197: X
B198: Trim | E198: 12" x 24" x 2cm | G198: USTEPB | I198: Step Tread w/Bullnose Edge | R198: c | S198: =IF(Suggested="Yes",AA198,AG198) -> 178.45 | T198: EA | U198: =+Instructions!$B$21 -> G | W198: =+Instructions!$C$21 -> 0 | X198: =IF(Instructions!$C$21="Group",#REF!,IF(Instructions!$C$21="Carter",#REF!,ROUNDUP($AA198*(1-W198),2))) -> 178.45 | AA198: 178.45 | AB198: =+W198 -> 0 | AC198: =+X198 -> 178.45 | AD198: =(AG198-AC198)/AG198 -> 0 | AF198: 2 | AG198: =SUM(AI198:AK198)+AE198 -> 178.45 | AI198: =ROUND(AC198/(1-VLOOKUP(AF198,Group,2,FALSE)),2) -> 178.45 | AJ198: =IF(VLOOKUP(AF198,Group,5,FALSE)="YES",VLOOKUP(ROUND(ROUND(AI198,1)-AI198,2),Round,2,FALSE)+VLOOKUP(AF198,Group,6,FALSE),0) -> 0 | AK198: =IF(VLOOKUP(AF198,Group,7,FALSE)="",0,ROUND(AI198-0.04999,1)-AI198+AL198) -> 0 | AL198: =IF(VLOOKUP(AF198,Group,7,FALSE)="","",VLOOKUP(AF198,Group,7,FALSE)) ->  | AN198: X
B199: Trim | E199: 12" x 24" x 2cm | G199: USTEPA | I199: Step Tread w/Square Edge | R199: c | S199: =IF(Suggested="Yes",AA199,AG199) -> 178.45 | T199: EA | U199: =+Instructions!$B$21 -> G | W199: =+Instructions!$C$21 -> 0 | X199: =IF(Instructions!$C$21="Group",#REF!,IF(Instructions!$C$21="Carter",#REF!,ROUNDUP($AA199*(1-W199),2))) -> 178.45 | AA199: 178.45 | AB199: 0 | AC199: 178.45 | AD199: =(AG199-AC199)/AG199 -> 0 | AF199: 2 | AG199: =SUM(AI199:AK199)+AE199 -> 178.45 | AI199: =ROUND(AC199/(1-VLOOKUP(AF199,Group,2,FALSE)),2) -> 178.45 | AJ199: =IF(VLOOKUP(AF199,Group,5,FALSE)="YES",VLOOKUP(ROUND(ROUND(AI199,1)-AI199,2),Round,2,FALSE)+VLOOKUP(AF199,Group,6,FALSE),0) -> 0 | AK199: =IF(VLOOKUP(AF199,Group,7,FALSE)="",0,ROUND(AI199-0.04999,1)-AI199+AL199) -> 0 | AL199: =IF(VLOOKUP(AF199,Group,7,FALSE)="","",VLOOKUP(AF199,Group,7,FALSE)) ->  | AN199: X
B200: Trim | E200: 12" x 24" x 2cm | G200: USTEPD | I200: Step Tread w/Square Edge, Grooves & Drip Flap | R200: c | S200: =IF(Suggested="Yes",AA200,AG200) -> 292.1 | T200: EA | U200: =+Instructions!$B$21 -> G | W200: =+Instructions!$C$21 -> 0 | X200: =IF(Instructions!$C$21="Group",#REF!,IF(Instructions!$C$21="Carter",#REF!,ROUNDUP($AA200*(1-W200),2))) -> 292.1 | AA200: 292.1 | AB200: 0 | AC200: 292.1 | AD200: =(AG200-AC200)/AG200 -> 0 | AF200: 2 | AG200: =SUM(AI200:AK200)+AE200 -> 292.1 | AI200: =ROUND(AC200/(1-VLOOKUP(AF200,Group,2,FALSE)),2) -> 292.1 | AJ200: =IF(VLOOKUP(AF200,Group,5,FALSE)="YES",VLOOKUP(ROUND(ROUND(AI200,1)-AI200,2),Round,2,FALSE)+VLOOKUP(AF200,Group,6,FALSE),0) -> 0 | AK200: =IF(VLOOKUP(AF200,Group,7,FALSE)="",0,ROUND(AI200-0.04999,1)-AI200+AL200) -> 0 | AL200: =IF(VLOOKUP(AF200,Group,7,FALSE)="","",VLOOKUP(AF200,Group,7,FALSE)) ->  | AN200: X
AN201: X
D202: Notes: | E202: a) Random assortment of 8 Deco patterns. | K202: b) Mosaics are Mesh-Mounted. | AN202: X
E203: c) Special Order Only. Minimum order quantity of 50 pieces per SKU. | AN203: X
AN204: X
C205: CANAL STREETHDP - Color Body Porcelain | R205: Item # Lookup: | S205: FTCS
AN206: X
D207: Colors: | E207: CST10 Levee White | H207: CST30 French Gray | K207: CST50 Black Bayou | AN207: X
E208: CST20 Café Light Gray | H208: CST40 Spanish Clay | AN208: X
AN209: X
B210: Field Tile | E210: 12" x 24" | G210: Field | I210: Rectified | P210: 15.62 SF/CTN | S210: =IF(Suggested="Yes",AA210,AG210) -> 6.5 | T210: SF | U210: =+Instructions!$B$21 -> G | W210: =+Instructions!$C$21 -> 0 | X210: =IF(Instructions!$C$21="Group",#REF!,IF(Instructions!$C$21="Carter",#REF!,ROUNDUP($AA210*(1-W210),2))) -> 6.5 | AA210: 6.5 | AB210: =+W210 -> 0 | AC210: =+X210 -> 6.5 | AD210: =(AG210-AC210)/AG210 -> 0 | AF210: 1 | AG210: =SUM(AI210:AK210)+AE210 -> 6.5 | AI210: =ROUND(AC210/(1-VLOOKUP(AF210,Group,2,FALSE)),2) -> 6.5 | AJ210: =IF(VLOOKUP(AF210,Group,5,FALSE)="YES",VLOOKUP(ROUND(ROUND(AI210,1)-AI210,2),Round,2,FALSE)+VLOOKUP(AF210,Group,6,FALSE),0) -> 0 | AK210: =IF(VLOOKUP(AF210,Group,7,FALSE)="",0,ROUND(AI210-0.04999,1)-AI210+AL210) -> 0 | AL210: =IF(VLOOKUP(AF210,Group,7,FALSE)="","",VLOOKUP(AF210,Group,7,FALSE)) ->  | AN210: X
B211: Field Tile | E211: 24" x 48" | G211: Field | I211: Rectified | P211: 15.39 SF/CTN | S211: =IF(Suggested="Yes",AA211,AG211) -> 8.4 | T211: SF | U211: =+Instructions!$B$21 -> G | W211: =+Instructions!$C$21 -> 0 | X211: =IF(Instructions!$C$21="Group",#REF!,IF(Instructions!$C$21="Carter",#REF!,ROUNDUP($AA211*(1-W211),2))) -> 8.4 | AA211: 8.4 | AB211: =+W211 -> 0 | AC211: =+X211 -> 8.4 | AD211: =(AG211-AC211)/AG211 -> 0 | AF211: 1 | AG211: =SUM(AI211:AK211)+AE211 -> 8.4 | AI211: =ROUND(AC211/(1-VLOOKUP(AF211,Group,2,FALSE)),2) -> 8.4 | AJ211: =IF(VLOOKUP(AF211,Group,5,FALSE)="YES",VLOOKUP(ROUND(ROUND(AI211,1)-AI211,2),Round,2,FALSE)+VLOOKUP(AF211,Group,6,FALSE),0) -> 0 | AK211: =IF(VLOOKUP(AF211,Group,7,FALSE)="",0,ROUND(AI211-0.04999,1)-AI211+AL211) -> 0 | AL211: =IF(VLOOKUP(AF211,Group,7,FALSE)="","",VLOOKUP(AF211,Group,7,FALSE)) ->  | AN211: X
AN212: X
D213: Colors: | E213: CST12D Light Deco (Levee White/Café Light Gray) CST44D Clay Deco (Spanish Clay) | AN213: X
E214: CST35D Dark Deco (French Gray/Black Bayou) | AN214: X
AN215: X
B216: Decos | E216: 12" x 24" | G216: Field - Deco | I216: Rectified | P216: 15.62 SF/CTN | S216: =IF(Suggested="Yes",AA216,AG216) -> 6.75 | T216: EA | U216: =+Instructions!$B$21 -> G | W216: =+Instructions!$C$21 -> 0 | X216: =IF(Instructions!$C$21="Group",#REF!,IF(Instructions!$C$21="Carter",#REF!,ROUNDUP($AA216*(1-W216),2))) -> 6.75 | AA216: 6.75 | AB216: =+W216 -> 0 | AC216: =+X216 -> 6.75 | AD216: =(AG216-AC216)/AG216 -> 0 | AF216: 3 | AG216: =SUM(AI216:AK216)+AE216 -> 6.75 | AI216: =ROUND(AC216/(1-VLOOKUP(AF216,Group,2,FALSE)),2) -> 6.75 | AJ216: =IF(VLOOKUP(AF216,Group,5,FALSE)="YES",VLOOKUP(ROUND(ROUND(AI216,1)-AI216,2),Round,2,FALSE)+VLOOKUP(AF216,Group,6,FALSE),0) -> 0 | AK216: =IF(VLOOKUP(AF216,Group,7,FALSE)="",0,ROUND(AI216-0.04999,1)-AI216+AL216) -> 0 | AL216: =IF(VLOOKUP(AF216,Group,7,FALSE)="","",VLOOKUP(AF216,Group,7,FALSE)) ->  | AN216: X
B217: Decos | E217: 8" x 48" | G217: Field - Deco | I217: Rectified | P217: 15.69 SF/CTN | S217: =IF(Suggested="Yes",AA217,AG217) -> 9.65 | T217: EA | U217: =+Instructions!$B$21 -> G | W217: =+Instructions!$C$21 -> 0 | X217: =IF(Instructions!$C$21="Group",#REF!,IF(Instructions!$C$21="Carter",#REF!,ROUNDUP($AA217*(1-W217),2))) -> 9.65 | AA217: 9.65 | AB217: =+W217 -> 0 | AC217: =+X217 -> 9.65 | AD217: =(AG217-AC217)/AG217 -> 0 | AF217: 3 | AG217: =SUM(AI217:AK217)+AE217 -> 9.65 | AI217: =ROUND(AC217/(1-VLOOKUP(AF217,Group,2,FALSE)),2) -> 9.65 | AJ217: =IF(VLOOKUP(AF217,Group,5,FALSE)="YES",VLOOKUP(ROUND(ROUND(AI217,1)-AI217,2),Round,2,FALSE)+VLOOKUP(AF217,Group,6,FALSE),0) -> 0 | AK217: =IF(VLOOKUP(AF217,Group,7,FALSE)="",0,ROUND(AI217-0.04999,1)-AI217+AL217) -> 0 | AL217: =IF(VLOOKUP(AF217,Group,7,FALSE)="","",VLOOKUP(AF217,Group,7,FALSE)) ->  | AN217: X
AN218: X
D219: Colors: | E219: CST10 Levee White | H219: CST30 French Gray | K219: CST50 Black Bayou | AN219: X
E220: CST20 Café Light Gray | H220: CST40 Spanish Clay | AN220: X
AN221: X
B222: Decos | E222: 11-3/8" x 11-3/8" | G222: M12REC | I222: Mosaic Rectangles (0.90 SF/SH - Mesh-Mounted) | P222: 5 EA/CTN | S222: =IF(Suggested="Yes",AA222,AG222) -> 37 | T222: EA | U222: =+Instructions!$B$21 -> G | W222: =+Instructions!$C$21 -> 0 | X222: =IF(Instructions!$C$21="Group",#REF!,IF(Instructions!$C$21="Carter",#REF!,ROUNDUP($AA222*(1-W222),2))) -> 37 | AA222: 37 | AB222: =+W222 -> 0 | AC222: =+X222 -> 37 | AD222: =(AG222-AC222)/AG222 -> 0 | AF222: 3 | AG222: =SUM(AI222:AK222)+AE222 -> 37 | AI222: =ROUND(AC222/(1-VLOOKUP(AF222,Group,2,FALSE)),2) -> 37 | AJ222: =IF(VLOOKUP(AF222,Group,5,FALSE)="YES",VLOOKUP(ROUND(ROUND(AI222,1)-AI222,2),Round,2,FALSE)+VLOOKUP(AF222,Group,6,FALSE),0) -> 0 | AK222: =IF(VLOOKUP(AF222,Group,7,FALSE)="",0,ROUND(AI222-0.04999,1)-AI222+AL222) -> 0 | AL222: =IF(VLOOKUP(AF222,Group,7,FALSE)="","",VLOOKUP(AF222,Group,7,FALSE)) ->  | AN222: X
AN223: X
B224: Trim | E224: 3" x 24" | G224: P43N9 | I224: Bullnose | S224: 13.7 | T224: EA | U224: =+Instructions!$B$21 -> G | W224: =+Instructions!$C$21 -> 0 | X224: =IF(Instructions!$C$21="Group",#REF!,IF(Instructions!$C$21="Carter",#REF!,ROUNDUP($AA224*(1-W224),2))) -> 13.7 | AA224: 13.7 | AB224: 0 | AC224: 13.7 | AD224: 0 | AF224: 2 | AG224: 13.7 | AI224: 13.7 | AJ224: 0 | AK224: 0 | AN224: X
... 760 more rows

Sheet Websites
A1: Easy Access Website links
A3: ConestogaTile's Website | B3: www.conestogatile.com
A5: Manufacturer's Home Page | B5: www.floridatile.com
A8: Product | B8: Direct Website Link
A9: Ainslee ParkHDP | B9: http://www.floridatile.com/products/ainslee-park
A10: AlustraHDP | B10: https://www.floridatile.com/products/alustra/
A11: Amplify | B11: https://www.floridatile.com/products/amplify/
A12: Aura | B12: https://www.floridatile.com/products/aura/
A13: Aventis | B13: http://www.floridatile.com/products/aventis
A14: Bellanova | B14: https://www.floridatile.com/products/bellanova/
A15: BerkshireHDP | B15: http://www.floridatile.com/products/berkshire
A16: BlueRunHDP | B16: https://www.floridatile.com/products/bluerun/
A17: Canal StreetHDP | B17: https://www.floridatile.com/products/canalstreet/
A18: CellarHDP | B18: http://www.floridatile.com/products/cellar
A19: Comfort | B19: https://www.floridatile.com/products/comfort/
A20: ContinentDP | B20: http://www.floridatile.com/products/continent
A21: CraftsmanDP | B21: http://www.floridatile.com/products/craftsman
A22: DivinityHDP | B22: http://www.floridatile.com/products/divinity
A23: East VillageHDP | B23: https://www.floridatile.com/products/east-village/
A24: Emotive | B24: https://www.floridatile.com/products/emotive/
A25: EnchantHDP | B25: https://www.floridatile.com/products/enchant/
A26: ExcursionHDP | B26: https://www.floridatile.com/products/excursion/
A27: Fluent | B27: https://www.floridatile.com/products/fluent/
A28: GravitateHDP | B28: https://www.floridatile.com/products/gravitate/
A29: High RidgeHDP | B29: https://www.floridatile.com/products/highridge/
A30: Indulge | B30: https://www.floridatile.com/products/indulge/
A31: LocalHDP | B31: http://www.floridatile.com/products/local
A32: Lost RiverHDP | B32: https://www.floridatile.com/products/lost-river/
A33: MagnoliaHDP | B33: http://www.floridatile.com/products/magnolia
A34: Memorable | B34: https://www.floridatile.com/products/memorable/
A35: MineralHDP | B35: https://www.floridatile.com/products/2cm-porcelain-pavers-mineral/
A36: NaturaHDP | B36: http://www.floridatile.com/products/natura
A37: NY2LAHDP | B37: http://www.floridatile.com/products/ny2la
A38: PassengerHDP | B38: https://www.floridatile.com/products/passenger/
A39: PietraArt Bliss | B39: http://www.floridatile.com/products/bliss
A40: PietraArt Ledgerstone | B40: http://www.floridatile.com/products/Ledgerstone
A41: PietraArt Pebbles | B41: http://www.floridatile.com/products/pietra-art-pebbles
A42: PreciousHDP | B42: http://www.floridatile.com/products/precious
A43: Rhyme | B43: http://floridatile.com/products/rhyme
A44: SequenceHDP | B44: http://www.floridatile.com/products/sequence
A45: SerendipityHDP | B45: https://www.floridatile.com/products/serendipity/
A46: Soho | B46: https://www.floridatile.com/products/soho/
A47: Songbird | B47: https://www.floridatile.com/products/songbird/
A48: SpanHDP | B48: https://www.floridatile.com/products/2cm-porcelain-pavers-span/
A49: Storied | B49: https://www.floridatile.com/products/storied/
A50: Tempo | B50: https://www.floridatile.com/products/tempo/
A51: TidesHDP | B51: https://floridatile.com/products/tides/
A52: Time 2.0 | B52: http://www.floridatile.com/products/time2_0
A53: Tuscan VillaHDP | B53: https://www.floridatile.com/products/tuscan-villa/
A54: Urban FoundryHDP | B54: https://www.floridatile.com/products/urban-foundry/

Sheet Changes
A1: Date | C1: Description
A2: Announced | B2: Series
A3: New Products
A4: 2006-02-27 | B4: Retroclassic | C4: S4369 & SN4369
A5: 2006-03-01 | B5: Hamlet Manor
A6: 2006-03-01 | B6: Horizon
A7: 2006-03-01 | B7: Pinecrest
A8: 2006-06-06 | B8: Stonehenge
A9: 2006-04-17 | B9: Livingston
A10: 2006-04-27 | B10: Scottish
A11: 2006-04-27 | B11: Pietra Art Chiseled Edge Travertine
A12: 2006-04-27 | B12: Pietra Art Mosaics
A13: 2006-05-15 | B13: Hamlet Wall Tile
A14: 2006-05-15 | B14: Terrace
A15: 2006-05-24 | B15: Las Olas | C15: added 13"x13", P43D9
A16: 2006-08-10 | B16: Cotto
A17: 2008-01-01 | B17: Urbanite | C17: Throughbody Porcelain
A18: 2008-01-01 | B18: Phoenix
A19: 2008-12-01 | B19: Ashton
A20: 2008-12-01 | B20: Cast Stone Fixtures
A21: 2008-12-01 | B21: Millenia | C21: Glazed Porcelain
A22: 2008-12-01 | B22: Pietra Art Granite & Marble | C22: GM024 - Teos Green & GM025 - Emperador Light colors in 12"x12" added.
A23: 2008-12-01 | B23: Pietra Art Mexican Travertine Planks
A24: 2008-12-01 | B24: Pietra Art Tumbled Marble
A25: 2009-04-01 | B25: Renaissance | C25: Glazed Porcelain Floor Satin Finish & Glazed Ceramic Wall Gloss Finish
A26: 2009-04-01 | B26: Progetto Casa | C26: Throughbody Porcelain
A27: 2009-04-01 | B27: Savannah | C27: Glazed Porcelain floor & Ceramic wall
A28: 2009-04-01 | B28: Soul | C28: Glazed Porcelain
A29: 2009-04-01 | B29: Taconic Slate | C29: Glazed Porcelain
A30: 2009-05-21 | B30: Metal Art Signature | C30: Cast Metal Decorative Accents
A31: 2009-07-02 | B31: Metal Art Matrix | C31: Stainless Steel Decorative Accents
A32: 2009-07-02 | B32: Taconic Slate | C32: Cove Base and Cove Base Corners added to Series
A33: 2009-07-21 | B33: Fontana | C33: Glazed Porcelain
A34: 2009-08-14 | B34: Formations | C34: Through-Body Porcelain
A35: 2009-09-15 | B35: LegendHDP | C35: Color-Body Glazed Porcelain (High Definition Porcelain)
A36: 2009-12-01 | B36: Metal Art Ornaments | C36: Metallic Resin Accents
A37: 2010-01-04 | B37: Pietra Art Slate & Tumbled Slate | C37: Ledger Stone 6” x 24” panels in colors NS300 Ash, NS302 Ember, NS304 Coal and NS306 Smoke. Also ¾” x 12” Liners in colors African Gold, California Gold, Copper, Indian Autumn and Multi.
A38: 2010-02-25 | B38: Mosaic Art Fresco | C38: Glazed Porcelain Mosaics
A39: 2010-06-28 | B39: ParamountHDP | C39: Color-Body Glazed Porcelain (High Definition Porcelain)
A40: 2010-06-28 | B40: Streamline | C40: Ceramic Wall Tile
A41: 2010-10-25 | B41: QuartezHDP | C41: Color-Body Glazed Porcelain (High Definition Porcelain)
A42: 2010-11-23 | B42: VitraArt Harmony | C42: Glass
A43: 2010-11-23 | B43: VitraArt Tranquil | C43: Glass
A44: 2011-01-17 | B44: PietraArt Bliss | C44: Natural Stone & Glass
A45: 2011-01-17 | B45: PietraArt Slate | C45: Addition of 6" x 24" Ledger Stone Corners.
A46: 2011-03-04 | B46: Pristine | C46: Glazed Porcelain Floor & Ceramic Wall
A47: 2011-06-24 | B47: Grandeur | C47: Color-Body Glazed Porcelain (High Definition Porcelain)
A48: 2011-06-24 | B48: Berkshire | C48: Color-Body Glazed Porcelain (High Definition Porcelain)
A49: 2011-06-24 | B49: PietraArt Travertine | C49: Addition of colors P010 Silver and P040 Scabos.
A50: 2011-06-24 | B50: Formations | C50: Addition of 12" x 24" Field Tile size.
A51: 2011-06-24 | B51: LegendHDP | C51: Addition of 12" x 24" Field Tile size.
A52: 2011-06-24 | B52: Progetto Casa | C52: Addition of 12" x 24" Field Tile size.
A53: 2011-06-24 | B53: Soul | C53: Addition of 12" x 24" Field Tile size.
A54: 2011-07-07 | B54: Pietra Art Polished Travertine | C54: Addition of colors 90410 Silver Travertine and 90440 Scabos Travertine, (Noce color replaced with 90490 Walnut Travertine color), Noce color 12" x 12", 18" x 18" field tile sizes and 2" x 4" polished and beveled mosaics.
A55: 2011-07-07 | B55: Pietra Art Chiseled Edge Travertine | C55: Color Scabos added to line, (Noce color replaced with Walnut color), Straight Edge/Brushed finish added to line as well as a Random Sized Pattern mosaic.
A56: 2011-08-08 | B56: STELLARHDP | C56: Through-Body Glazed Porcelain (High Definition Porcelain)
A57: 2012-01-10 | B57: PIETRA ART BLISS | C57: Six new colors added to each of the 2 mosaic formats.
A58: 2012-03-10 | B58: GallantHDP | C58: Glazed Porcelain Floor & Ceramic Wall (High Definition Porcelain)
A59: 2012-05-31 | B59: Pietra Art Mexican Travertine | C59: 18" x 18" Field tile size. (replaces 16" x 16" size)
A60: 2012-05-31 | B60: Pietra Art Mexican Travertine | C60: L3x12 3" x 12" Listello Filled & Honed available in colors 90301 Desert Cream Blend, 90302 Noce Blend & 90303 Desert Cream/Noce Blend.
A61: 2012-05-31 | B61: Pietra Art Mexican Travertine | C61: Porcelain I4x4 4" x 4" 3 Piece Deco Set & I2x2 2" x 2" 4 Piece Deco Set available in color 90303 Desert Cream/Noce.
A62: 2012-05-31 | B62: Pietra Art Mexican Travertine | C62: FP12 Fireplace Mosaic, SFM1x2 1" x 2" Split Face Mosaic, CR2x12 2" x 12" Chair Rail Molding & MR3/4x12 4" x 12" Pencil Molding available in colors 90325 Noce & 90333 Desert Cream Imperial. These items are Filled & Honed.
A63: 2012-05-31 | B63: Pietra Art Mexican Travertine | C63: Domed Field tile sizes 3" x 6", 4" x 4" & 6" x 6" and DM4x9 Domed 4" x 9" Diamond Mosaic & DBW12 Domed Basketweave Mosaic. These items are Filled & Honed and available in colors D90325 Noce & D90333 Desert Cream Imperial.
A64: 2012-05-31 | B64: Pietra Art Mexican Travertine | C64: M125/8 P90300 Fusion 5/8" x 5/8" Mosaic.
A65: 2012-05-31 | B65: Pietra Art Mexican Travertine | C65: Vein Cut Field tile sizes 3" x 6", 4" x 4", 6" x 6" & 12" x 12" and M122 Vein Cut 2" x 2" Mosaic & 1x2 Vein Cut Mosaic. Also CR1x12 Chair Rail 1" x 12" Molding Vein Cut & CR2.5x12 Chair Rail 2-1/2" x 12" Molding Vein Cut. All items available in colors P90325 Noce & P90333 Desert Cream Imperial and are Filled & Polished.
A66: 2012-08-06 | B66: Cinema | C66: Glazed Porcelain Floor & Ceramic Wall (High Definition Porcelain)
A67: 2012-10-24 | B67: CraftsmanDP | C67: Glazed Porcelain Floor & Wall (Digital Porcelain)
A68: 2012-11-19 | B68: NaturaHDP | C68: Color-Body Glazed Porcelain (High Definition Porcelain)
A69: 2013-02-19 | B69: CliffsideHDP | C69: Color-Body Glazed Porcelain (High Definition Porcelain)
A70: 2013-02-19 | B70: Savannah | C70: 6" x 12" P36C9 Cove Base and 1" x 6" PB3169 Cove Base Corner added to line in colors 24301 Magnolia White, 24324 Cobblestone Taupe & 24330 Plantation Beige only.
A71: 2013-02-19 | B71: Streamline New | C71: Glazed Ceramic
A72: 2013-02-19 | B72: TidesHDP | C72: Glazed Porcelain (High Definition Porcelain)
A73: 2013-03-25 | B73: Aventis | C73: Through Body Procelain
A74: 2013-06-27 | B74: MagnoliaHDP | C74: Color-Body Glazed Porcelain (High Definition Porcelain)
A75: 2013-06-27 | B75: MingleHDP | C75: Glazed Porcelain (High Definition Porcelain)
A76: 2013-07-11 | B76: Time 2.0 | C76: Through Body Porcelain
A77: 2014-04-01 | B77: PietraArt Bliss | C77: 8 colors added to the RSP5/8 Random Size Linear Mosaics.
A78: 2014-05-13 | B78: Pietra Art Pebbles | C78: 5 colors of Flat Pebbles Mosaics on a 12" x 12" Mesh-Mounted Interlocking Sheet have been added to line: FP102 Black Pearl, FP103 White Snowball, FP104 Mixed Salad, FP105 Redwood and FP306 Cotton. (Color SP104 Rainbow 4" x 12" Standing Pebbles Mosaic has been renamed SP104 Mixed Salad.)
A79: 2014-09-02 | B79: MalteseDP | C79: Glazed Porcelain Floor & Ceramic Wall (Digital Porcelain)
A80: 2014-09-02 | B80: MarquisDP | C80: Glazed Porcelain Floor & Ceramic Wall (High Definition Porcelain)
A81: 2014-09-04 | B81: ContinentDP | C81: Glazed Porcelain Floor & Wall (Digital Porcelain)
A82: 2015-02-26 | B82: VitraArt Fusion | C82: Glass 5/8" Random Strip Mosaic pattern available in eight colors.
A83: 2015-02-26 | B83: VitraArt Stained Glass | C83: Three mosaic patterns available in seven colors.
A84: 2015-02-26 | B84: BerkshireHDP | C84: 8" x 36" Field Tile size and 12" x 12" Parquet Mosaic added and are available in all colors.
A85: 2015-03-30 | B85: Aventis Thinner | C85: Thin (3.5 mm) Through-Body Porcelain
A86: 2015-03-30 | B86: EarthstoneHDP | C86: Glazed Porcelain (High Definition Porcelain)
A87: 2015-03-30 | B87: RestoreHDP Thinner | C87: Thin (5.5 mm) Through-Body Porcelain (High Definition Porcelain)
A88: 2015-03-30 | B88: Time 2.0 Thinner | C88: Thin (3.5 mm) Through-Body Porcelain
A89: 2015-04-29 | B89: Rhyme | C89: Color-Body Glazed Porcelain Floor & Wall Tile
A90: 2015-05-05 | B90: Level 10HDP | C90: Color-Body Glazed Porcelain Floor & Wall Tile (High Definition Porcelain)
A91: 2015-10-27 | B91: AlavaHDP | C91: Glazed Porcelain Floor & Wall (High Definition Porcelain)
A92: 2015-10-27 | B92: ImperoHDP | C92: Glazed Porcelain Wall Tile (High Definition Porcelain)
A93: 2015-10-27 | B93: MosaicArt Epic | C93: Glazed Porcelain Floor & Wall Mosaics
A94: 2015-10-27 | B94: ReliveHDP | C94: Glazed Porcelain Floor & Wall (High Definition Porcelain)
A95: 2015-10-27 | B95: Retroclassique | C95: Glazed Ceramic Wall Tile
A96: 2016-01-05 | B96: MyBrickHDP | C96: Glazed Porcelain Wall Tile (High Definition Porcelain)
A97: 2016-03-02 | B97: KeralaHDP | C97: Color Body Porcelain Floor & Wall Tile (High Definition Porcelain)
A98: 2016-03-02 | B98: CellarHDP | C98: Color Body Porcelain (High Definition Porcelain)
A99: 2016-07-28 | B99: SpanHDP | C99: Color Body Porcelain Floor & Wall Tile (High Definition Porcelain)
A100: 2016-09-13 | B100: NexaHDP | C100: Color Body Porcelain Floor & Wall Tile (High Definition Porcelain)
A101: 2016-10-31 | B101: PietraArt Ledgerstone | C101: A hand-assembled, three-dimensional panel made from Slate, Marble and vein-cut Marble and Travertine. The long, linear pieces of varying heights and textures combine to create a product that blends old-world character with modern design. (Four of the Slate L6x24 Ledgerstone panels are being moved into this series from the series formally known as Pietra Art Slate & Tumbled Slate.)
A102: 2016-11-21 | B102: SequenceHDP | C102: Color Body Porcelain Floor & Wall Tile (High Definition Porcelain)
A103: 2017-03-13 | B103: Glamour | C103: Glazed Porcelain Floor & Ceramic Wall Tile
A104: 2017-03-13 | B104: PreciousHDP | C104: Glazed Porcelain Floor & Ceramic Wall Tile (High Definition Porcelain)
A105: 2017-09-12 | B105: DistilleryHDP | C105: Glazed Porcelain Floor & Wall Tile (High Definition Porcelain)
A106: 2017-09-12 | B106: Edge | C106: Through-Body Porcelain
A107: 2017-09-12 | B107: NY2LAHDP | C107: Color Body Porcelain Floor & Wall Tile (High Definition Porcelain)
A108: 2017-09-12 | B108: WexfordHDP | C108: Color Body Porcelain Floor & Wall Tile (High Definition Porcelain)
A109: 2018-01-03 | B109: Ainslee ParkHDP | C109: Glazed Porcelain Floor & Ceramic Wall (High Definition Porcelain)
A110: 2018-01-03 | B110: GenesisHDP | C110: Glazed Porcelain Floor & Wall Tile (High Definition Porcelain)
A111: 2018-02-28 | B111: VitraArt Peace of Mind | C111: Glass Field Tiles and Mosaics
A112: 2018-03-23 | B112: MingleHDP | C112: 3.75" x 12" Field Tile format added.
A113: 2018-03-23 | B113: Rhyme | C113: 3.75" x 12" Field Tile format added.
A114: 2018-03-23 | B114: SequenceHDP | C114: 3.75" x 12" Field Tile format added.
A115: 2018-03-23 | B115: TidesHDP | C115: 3.75" x 12" Field Tile format added.
A116: 2018-03-23 | B116: Time 2.0 | C116: 3.75" x 12" Field Tile format added to both Natural & Polished finishes.
A117: 2018-08-20 | B117: DivinityHDP | C117: Color Body Glazed Porcelain Floor & Wall (High Definition Porcelain)
A118: 2018-08-20 | B118: LocalHDP | C118: Glazed Porcelain Floor & Wall (High Definition Porcelain)
A119: 2018-08-20 | B119: Thicker Collections | C119: Ultra-Thick Outdoor Porcelain Pavers (High Definition Porcelain). Available in the following Series: CadoreHDP, MineralHDP, QuestHDP, ReliveHDP and SpanHDP.
A120: 2018-09-27 | B120: Pietra Art Premier Marble | C120: Natural Stone
A121: 2019-03-01 | B121: EnchantHDP | C121: Glazed Porcelain Floor & Wall (High Definition Porcelain)
A122: 2019-03-01 | B122: Soul | C122: P43N9 3" x 24" Bullnose in all colors added.
A123: 2019-06-28 | B123: Tuscan VillaHDP | C123: Glazed Porcelain Floor & Wall (High Definition Porcelain)
A124: 2019-07-24 | B124: ExcursionHDP | C124: Glazed Porcelain Floor & Wall (High Definition Porcelain)
A125: 2019-10-08 | B125: PietraArt Travertine | C125: This series has been updated.
A126: 2020-03-06 | B126: ModtiqueHDP | C126: Color Body Glazed Porcelain Floor & Wall Tile (High Definition Porcelain)
A127: 2020-04-23 | B127: Lost RiverHDP | C127: Color Body Porcelain Floor & Wall Tile (High Definition Porcelain)
A128: 2020-05-07 | B128: Stark | C128: Glazed Porcelain Floor & Ceramic Wall
A129: 2020-06-11 | B129: Urban FoundryHDP | C129: Color Body Porcelain Floor & Wall Tile (High Definition Porcelain)
A130: 2020-09-24 | B130: Amplify | C130: Glazed Ceramic Wall Tile (Rectified).
A131: 2020-09-24 | B131: Emotive | C131: Glazed Ceramic Wall Tile.
A132: 2020-11-10 | B132: East VillageHDP | C132: Color Body Porcelain Floor & Wall Tile (High Definition Porcelain).
A133: 2021-01-26 | B133: Lost RiverHDP | C133: Color LRV80 Silver L1/4x24 Metal Wall Liner added.
A134: 2021-04-13 | B134: CraftsmanDP | C134: 24" x 24" Field Tile format added and is available in all colors.
A135: 2021-07-15 | B135: Pietra Art Pebbles | C135: 4 colors of Flat Pebbles Mosaics have been added to line: FP201 Rustic Birch, FP203R Island White, SACP002 Navajo White and SACP004 Silver Quartz. 1 color of Round Pebbles Mosaic has been added, PT316 Orion.
A136: 2021-07-15 | B136: SequenceHDP | C136: 24" x 48" Field Tile format added and is currently available in colors 34901 Breeze, 34915 Current and 34938 Drift.
A137: 2021-08-13 | B137: PreciousHDP | C137: 24" x 48" x 9mm Floor Field Tile format added in color 35001 Calacatta.
A138: 2021-10-01 | B138: SerendipityHDP | C138: Color Body Porcelain Floor & Wall Tile (High Definition Porcelain)
A139: 2022-01-07 | B139: SequenceHDP | C139: 8" x 48" x 9mm Field Tile format added and is available in colors 34901 Breeze, 34915 Current and 34938 Drift only.
A140: 2022-08-12 | B140: High RidgeHDP | C140: Glazed Porcelain Floor & Wall Tile (High Definition Porcelain).
A141: 2022-08-12 | B141: Songbird | C141: Glazed Ceramic Wall Tile.
A142: 2022-09-27 | B142: AlustraHDP | C142: Color Body Porcelain Floor & Wall Tile (High Definition Porcelain)
A143: 2022-09-27 | B143: Aura | C143: Glazed Porcelain Floor & Wall Tile
A144: 2022-09-27 | B144: GravitateHDP | C144: Glazed Porcelain Floor Tile (High Definition Porcelain)
A145: 2022-09-27 | B145: NY2LAHDP 2CM | C145: Ultra-Thick Outdoor Porcelain Paver
A146: 2022-09-27 | B146: Soho | C146: Glazed Ceramic Wall Tile & Porcelain Mosaics
A147: 2022-09-27 | B147: Tempo | C147: Glazed Porcelain Floor & Ceramic Wall Tile
A148: 2022-10-05 | B148: Memorable | C148: Unglazed Porcelain Floor & Wall Tile
A149: 2023-04-13 | B149: BlueRunHDP | C149: Color Body Porcelain & 2cm Pavers.
A150: 2023-04-13 | B150: Canal StreetHDP | C150: Color Body Porcelain.
A151: 2023-04-13 | B151: Emotive | C151: Colors True White Glossy and True White Silk added to all formats.
A152: 2023-04-13 | B152: High RidgeHDP | C152: 24" x 36" Pressed 2cm Porcelain Pavers added. Also a 12" x 24" x 2cm Step Tread format added that is special order with a minimum order quantity of 50 pieces per item.
A153: 2023-04-13 | B153: PassengerHDP | C153: Color Body Porcelain & 2cm Pavers.
A154: 2023-04-13 | B154: Storied | C154: Glazed Ceramic Wall.
A155: 2023-07-13 | B155: Emotive | C155: Colors EMV0G True White Glossy and EMV0S True White Silk added.
A156: 2023-07-25 | B156: Fluent | C156: Glazed Ceramic Wall.
A157: 2024-07-31 | B157: Bellanova | C157: Color Body Glazed Porcelain.
A158: 2024-07-31 | B158: Indulge | C158: Color Body Glazed Porcelain.
A159: 2024-11-07 | B159: Comfort | C159: Glazed Porcelain 10" x 60" "Wood Look" Planks.
A160: 2024-11-07 | B160: AlustraHDP | C160: 2-1/4" x 2-1/4" Mosaic format has been added to the Alustra collection. This mesh-mounted mosaic is available in all five colors in the matte finish only.
A164: Discontinued Products
A165: 2006-01-13 | B165: Biscayne | C165: Entire Series.
A166: 2006-01-13 | B166: Carmel | C166: Entire Series.
A167: 2006-01-13 | B167: Crystal | C167: Entire Series.
A168: 2006-01-13 | B168: Miner's Mark | C168: Entire Series.
A169: 2006-01-13 | B169: Proselect | C169: Entire Series.
A170: 2006-01-13 | B170: Old World | C170: Entire Series. except L2x13/50900B
A171: 2006-01-13 | B171: Yukon | C171: Entire Series. except MCR2x12/1803 & MCRS2x12/1803
A172: 2006-01-13 | B172: Glacier | C172: 6x8 and 8x8
A173: 2006-01-13 | B173: Las Olas | C173: A108, AC108, A8282E & AC8282E
A174: 2006-01-13 | B174: Bright | C174: A3602 & AN3602
A175: 2006-01-13 | B175: Matte | C175: A3602 & AN3602
A176: 2006-02-27 | B176: Retroclassic | C176: S4269 & SN4269
A177: 2006-03-17 | B177: Ariostea Geo Natura | C177: Color 151A India
A178: 2006-03-27 | B178: Appalachian Slate | C178: A106 & AC106
A179: 2006-03-30 | B179: Ariostea Geo Natura | C179: Color 115A Epiro
A180: 2006-04-27 | B180: Premium Blend | C180: Entire Series.
A181: 2006-10-03 | B181: Belvitra | C181: Entire Series.
A182: 2006-10-03 | B182: Bright | C182: Various Trim Shapes
A183: 2006-10-03 | B183: Cornerstones | C183: Entire Series.
A184: 2006-10-03 | B184: Designline | C184: Entire Series.
A185: 2006-10-03 | B185: Dots, Ropes, & Rounded Moldings
A186: 2006-10-03 | B186: EpicStone | C186: Entire Series.
A187: 2006-10-03 | B187: Madeira | C187: Entire Series.
A188: 2006-10-03 | B188: Maison | C188: Entire Series.
A189: 2006-10-03 | B189: Perfect Partners | C189: Entire Series.
A190: 2006-10-03 | B190: Perfect Partners Prem | C190: Entire Series.
A191: 2006-10-03 | B191: Potter's Choice | C191: Entire Series.
A192: 2006-10-03 | B192: Potter's Touch | C192: Entire Series.
A193: 2006-10-03 | B193: Quebec | C193: Entire Series.
A194: 2006-10-03 | B194: Solano | C194: Entire Series.
A195: 2006-10-03 | B195: Stonegate | C195: Entire Series.
A196: 2006-10-03 | B196: TileArt Listellos | C196: Entire Series.
A197: 2006-10-03 | B197: Vessel Art Listellos | C197: Entire Series.
A198: 2006-10-03 | B198: Matte | C198: Various Trim Shapes
A199: 2006-10-03 | B199: RetroClassic Flair | C199: 13" x 13" floor tiles
A200: 2008-01-01 | B200: Ariostea Geo Natura | C200: Entire Series.
A201: 2008-01-01 | B201: Botanical | C201: Entire Series.
A202: 2008-01-01 | B202: Musica | C202: Entire Series.
A203: 2008-03-18 | B203: Metal and Cast Decor | C203: Floral design only 1"x1", 2"x2" & 1-1/4"x8 all finishes.
... 440 more rows
